{"text_format":"1","workbook":"xlsx","n_sheets":10,"sheets":["1. Operasional","2. Kredit","3. Likuiditas","4. Pasar","5. Kepatuhan","6. Reputasi","7. Hukum","8. Strategis","Rekap Nilai","12. Summary"],"not_rendered":{"charts":0,"images":67,"macros":1,"external_links":1,"defined_names":11,"comments":0,"pivot_tables":0},"unopened":[],"bounds":{"document_bytes":16777216,"sheet_cells":100000,"rows_first":2000,"rows_last":500,"rows_between":2000,"halvings":0,"cell_chars":16384,"cell_head_chars":4096},"cells_cut":0,"cells_raw":0,"read":"whole","date_system":"1900"}

{"sheet":"1. Operasional","index":0,"n_rows":341,"n_cols":10,"rows_kept":341,"cut":false,"hidden":false,"merged":[[0,0,0,9],[5,0,5,9],[6,0,6,9],[7,3,7,4],[7,7,7,8],[54,3,54,4],[147,3,147,4],[7,0,49,0],[54,0,142,0],[147,0,339,0],[8,1,17,1],[20,1,32,1],[35,1,47,1],[55,1,80,1],[83,1,97,1],[100,1,140,1],[148,1,173,1],[176,1,205,1],[208,1,233,1],[236,1,255,1],[258,1,337,1],[10,2,11,2],[12,2,14,2],[15,2,17,2],[21,2,22,2],[23,2,25,2],[26,2,28,2],[29,2,32,2],[35,2,36,2],[37,2,38,2],[39,2,41,2],[42,2,44,2],[45,2,47,2],[55,2,59,2],[60,2,64,2],[65,2,70,2],[71,2,75,2],[76,2,80,2],[83,2,85,2],[86,2,88,2],[89,2,91,2],[92,2,94,2],[95,2,97,2],[100,2,108,2],[109,2,117,2],[118,2,126,2],[127,2,133,2],[134,2,140,2],[148,2,153,2],[154,2,158,2],[159,2,163,2],[164,2,168,2],[169,2,173,2],[176,2,181,2],[182,2,187,2],[188,2,193,2],[194,2,199,2],[200,2,205,2],[208,2,213,2],[214,2,218,2],[219,2,223,2],[224,2,228,2],[229,2,233,2],[236,2,239,2],[240,2,243,2],[244,2,247,2],[248,2,251,2],[252,2,255,2],[258,2,273,2],[274,2,289,2],[290,2,305,2],[306,2,321,2],[322,2,337,2],[69,3,70,3],[84,3,85,3],[87,3,88,3],[90,3,91,3],[93,3,94,3],[96,3,97,3],[100,3,108,3],[109,3,117,3],[119,3,126,3],[128,3,133,3],[135,3,140,3],[148,3,150,3],[151,3,153,3],[154,3,156,3],[157,3,158,3],[159,3,161,3],[162,3,163,3],[164,3,166,3],[167,3,168,3],[169,3,171,3],[172,3,173,3],[180,3,181,3],[186,3,187,3],[192,3,193,3],[198,3,199,3],[204,3,205,3],[212,3,213,3],[236,3,237,3],[238,3,239,3],[240,3,241,3],[242,3,243,3],[244,3,245,3],[246,3,247,3],[248,3,249,3],[250,3,251,3],[252,3,253,3],[254,3,255,3],[258,3,265,3],[266,3,273,3],[274,3,280,3],[281,3,289,3],[290,3,296,3],[297,3,305,3],[306,3,312,3],[313,3,321,3],[322,3,328,3],[329,3,337,3],[69,4,70,4],[84,4,85,4],[87,4,88,4],[90,4,91,4],[93,4,94,4],[96,4,97,4],[100,4,108,4],[109,4,117,4],[119,4,126,4],[128,4,133,4],[135,4,140,4],[148,4,150,4],[151,4,153,4],[154,4,156,4],[157,4,158,4],[159,4,161,4],[162,4,163,4],[164,4,166,4],[167,4,168,4],[169,4,171,4],[172,4,173,4],[180,4,181,4],[186,4,187,4],[192,4,193,4],[198,4,199,4],[204,4,205,4],[212,4,213,4],[236,4,237,4],[238,4,239,4],[240,4,241,4],[242,4,243,4],[244,4,245,4],[246,4,247,4],[248,4,249,4],[250,4,251,4],[252,4,253,4],[254,4,255,4],[258,4,265,4],[266,4,273,4],[274,4,280,4],[281,4,289,4],[290,4,296,4],[297,4,305,4],[306,4,312,4],[313,4,321,4],[322,4,328,4],[329,4,337,4],[69,5,70,5],[84,5,85,5],[87,5,88,5],[90,5,91,5],[93,5,94,5],[96,5,97,5],[100,5,108,5],[109,5,117,5],[119,5,126,5],[128,5,133,5],[135,5,140,5],[148,5,150,5],[151,5,153,5],[154,5,156,5],[157,5,158,5],[159,5,161,5],[162,5,163,5],[164,5,166,5],[167,5,168,5],[169,5,171,5],[172,5,173,5],[180,5,181,5],[186,5,187,5],[192,5,193,5],[198,5,199,5],[204,5,205,5],[212,5,213,5],[236,5,237,5],[238,5,239,5],[240,5,241,5],[242,5,243,5],[244,5,245,5],[246,5,247,5],[248,5,249,5],[250,5,251,5],[252,5,253,5],[254,5,255,5],[258,5,265,5],[266,5,273,5],[274,5,280,5],[281,5,289,5],[290,5,296,5],[297,5,305,5],[306,5,312,5],[313,5,321,5],[322,5,328,5],[329,5,337,5],[10,6,11,6],[12,6,14,6],[15,6,17,6],[21,6,22,6],[23,6,25,6],[26,6,28,6],[29,6,32,6],[35,6,36,6],[37,6,38,6],[39,6,41,6],[42,6,44,6],[45,6,47,6],[55,6,59,6],[60,6,64,6],[65,6,70,6],[71,6,75,6],[76,6,80,6],[188,6,193,6],[83,6,85,6],[86,6,88,6],[89,6,91,6],[92,6,94,6],[95,6,97,6],[100,6,108,6],[109,6,117,6],[118,6,126,6],[127,6,133,6],[39,7,41,7],[42,7,44,7],[45,7,47,7],[212,7,213,7],[230,7,232,7],[324,7,325,7],[336,7,337,7],[194,6,199,6],[200,6,205,6],[208,6,213,6],[214,6,218,6],[219,6,223,6],[224,6,228,6],[229,6,233,6],[236,6,239,6],[240,6,243,6],[134,6,140,6],[148,6,153,6],[154,6,158,6],[159,6,163,6],[164,6,168,6],[169,6,173,6],[176,6,181,6],[182,6,187,6],[212,9,213,9],[230,9,232,9],[324,9,325,9],[336,9,337,9],[256,1,257,9],[10,8,11,8],[12,8,14,8],[15,8,17,8],[21,8,22,8],[23,8,25,8],[26,8,28,8],[29,8,32,8],[35,8,36,8],[37,8,38,8],[244,6,247,6],[248,6,251,6],[252,6,255,6],[258,6,273,6],[274,6,289,6],[290,6,305,6],[306,6,321,6],[322,6,337,6],[35,7,36,7],[37,7,38,7],[338,1,339,9],[340,0,341,9],[206,1,207,9],[234,1,235,9],[174,1,175,9],[3,0,4,9],[1,0,2,9],[50,0,51,9],[18,1,19,9],[33,1,34,9],[48,1,49,9],[98,1,99,9],[143,0,144,9],[141,1,142,9],[145,0,146,9],[52,0,53,9],[81,1,82,9],[39,8,41,8],[42,8,44,8],[45,8,47,8],[212,8,213,8],[230,8,232,8],[324,8,325,8],[336,8,337,8]]}
["RISIKO OPERASIONAL"]
["Tujuan:"]
[]
["Kesimpulan :"]
[]
["PARAMETER"]
["I. Kompleksitas Bisnis"]
[null,"Indikator Parameter Risiko Inheren","Klasifikasi","Pengukuran Risiko",null,"Keterangan","Klasifikasi","Mitigasi",null,"Keterangan"]
[null,"1. Kompleksitas Produk dan Transaksi","Peringkat 1"," a.","Perusahaan Efek saat ini hanya sebagai perantara atas Efek yang bersifat Ekuitas dan/atau unit penyertaan reksa dana untuk pihak lain",null,"Peringkat 1"]
[null,null,"Peringkat 2","a.","Perusahaan Efek saat ini sebagai perantara atas Efek yang bersifat Ekuitas, unit penyertaan reksa dana dan/atau Surat Utang (Korporasi dan Negara) untuk pihak lain",null,"Peringkat 2"]
[null,null,"Peringkat 3","a.","Perusahaan Efek saat ini sebagai perantara pedagang atas Efek yang bersifat Ekuitas, unit penyertaan reksa dana dan Surat Utang (Korporasi dan Negara) untuk pihak lain dan/atau untuk portofolio PE",null,"Peringkat 3"]
[null,null,null,"b.","Perusahaan Efek sebagai Partisipan dalam transaksi Surat Utang"]
[null,null,"Peringkat 4","a.","Perusahaan Efek saat ini memperdagangkan Efek bersifat Ekuitas, unit penyertaan reksa dana,  Surat Utang (Korporasi dan Negara), dan/atau Efek Derivatif untuk pihak lain dan/atau untuk portofolio PE",null,"Peringkat 4"]
[null,null,null,"b.","Perusahaan Efek sebagai Partisipan dalam transaksi Surat Utang "]
[null,null,null,"c.","Perusahaan Efek melakukan transaksi Repo, Reverse Repo, Pinjam-meminjam Dana dan Efek. "]
[null,null,"Peringkat 5","a.","Perusahaan Efek saat ini memperdagangkan Efek bersifat Ekuitas, unit penyertaan reksa dana, Surat Utang (Korporasi dan Negara), Efek Derivatif dan/atau Efek lain yang tidak terdaftar, untuk pihak lain dan/atau untuk portofolio PE",null,"Peringkat 5"]
[null,null,null,"b.","Perusahaan Efek sebagai Partisipan dalam transaksi Surat Utang , Penerbit efek"]
[null,null,null,"c.","Perusahaan Efek melakukan transaksi Repo, Reverse Repo, Pinjam-meminjam Dana dan Efek."]
[null,"Kesimpulan :"]
[]
[null,"2. Kompleksitas Layanan Jasa Perdagangan","Peringkat 1","a.","Perusahaan Efek mempunyai izin PPE",null,"Peringkat 1"]
[null,null,"Peringkat 2","a.","Perusahaan Efek mempunyai izin PPE, PEE",null,"Peringkat 2"]
[null,null,null,"b.","Perusahaan Efek mempunyai Online Trading"]
[null,null,"Peringkat 3","a.","Perusahaan Efek mempunyai izin PPE / PEE",null,"Peringkat 3"]
[null,null,null,"b.","Perusahaan Efek mempunyai Online Trading"]
[null,null,null,"c.","Perusahaan Efek mempunyai izin Marjin dan Short Selling"]
[null,null,"Peringkat 4","a.","Perusahaan Efek mempunyai izin PPE/ PEE atau PPE/ PEE",null,"Peringkat 4"]
[null,null,null,"b.","Perusahaan Efek mempunyai Online Trading"]
[null,null,null,"c.","Perusahaan Efek mempunyai izin Marjin dan Short Selling"]
[null,null,"Peringkat 5","a.","Perusahaan Efek mempunyai izin PPE/ PEE atau PPE/ PEE",null,"Peringkat 5"]
[null,null,null,"b.","Perusahaan Efek mempunyai Online Trading"]
[null,null,null,"c.","Perusahaan Efek mempunyai izin Marjin dan Short Selling"]
[null,null,null,"d.","Perusahaan Efek mempunyai izin Algorithm Trading dan DMA"]
[null,"Kesimpulan :"]
[]
[null,"3. Kompleksitas Nasabah","Peringkat 1","a.","Perusahaan Efek mempunyai NPR Dalam Negeri dan/atau Nasabah Kelembagaan Dalam Negeri",null,"Peringkat 1"]
[null,null,null,"b.","NPR yang aktif sd 500 dan Nasabah Kelembagaan sd 5"]
[null,null,"Peringkat 2","a.","Perusahaan Efek mempunyai NPR Dalam Negeri dan/ atau Nasabah Kelembagaan Dalam Negeri ",null,"Peringkat 2"]
[null,null,null,"b.","NPR yang aktif 501 sd 1000 dan Nasabah Kelembagaan 6 sd 10"]
[null,null,"Peringkat 3","a.","Perusahaan Efek mempunyai NPR Dalam Negeri dan/atau Nasabah Kelembagaan Dalam Negeri dan/atau Luar Negeri ",null,"Peringkat 3"]
[null,null,null,"b.","NPR yang aktif sd 5.000 dan Nasabah Kelembagaan sd 10, atau"]
[null,null,null,"c.","NPR Perusahaan Efek termasuk Pegawai Perusahaan Efek (hanya c)"]
[null,null,"Peringkat 4","a.","Perusahaan Efek mempunyai NPR Dalam Negeri dan/atau Nasabah Kelembagaan Dalam Negeri dan/ atau Luar Negeri",null,"Peringkat 4"]
[null,null,null,"b.","NPR yang aktif 5001 sd 10000 dan Nasabah Kelembagaan sd 10"]
[null,null,null,"c.","NPR Perusahaan Efek termasuk Pegawai Perusahaan Efek"]
[null,null,"Peringkat 5","a.","Perusahaan Efek mempunyai NPR Dalam Negeri dan/atau Nasabah Kelembagaan Dalam Negeri dan/ atau Luar Negeri",null,"Peringkat 5"]
[null,null,null,"b.","NPR yang aktif > 10000 dan Nasabah Kelembagaan > 10"]
[null,null,null,"c.","NPR Perusahaan Efek termasuk Pegawai Perusahaan Efek"]
[null,"Kesimpulan :"]
[]
["Kesimpulan :"]
[]
["II. Sumber Daya Manusia"]
[]
[null,"Indikator Parameter Risiko Inheren","Klasifikasi","Pengukuran Risiko",null,"Keterangan","Klasifikasi",null,"Mitigasi","Keterangan"]
[null,"1. Beban kerja pegawai yang tidak seimbang akibat proses kerja yang tidak efisien","Peringkat 1","a.","Tidak ada turnover pegawai (6bulan)",null,"Peringkat 1","a.","Memiliki POS rekrutmen pegawai"]
[null,null,null,"b.","Tidak ada turnover pegawai berizin (6bulan)",null,null,"b.","POS diimplementasikan, diawasi, dan diperiksa"]
[null,null,null,"c.","Tidak ada pegawai outsourcing",null,null,"c.","POS direviu berkala dan diperbarui"]
[null,null,null,"d.","Jumlah User Remote Trading sama dengan jumlah WPE",null,null,"d.","Memiliki Analisis Beban Kerja pegawai"]
[null,null,null,"e.","Pegawai pada fungsi utama (VD3) Perusahaan Efek semua memiliki izin WPE",null,null,"e.","Memiliki daftar WPE tercela"]
[null,null,"Peringkat 2","a.","Turnover pegawai < 5% dimana tidak ada pegawai inti yang pindah",null,"Peringkat 2","a.","Memiliki POS rekrutmen pegawai"]
[null,null,null,"b.","Turnover pegawai berizin < 5% ",null,null,"b.","POS diimplementasikan, diawasi, dan diperiksa"]
[null,null,null,"c.","Jumlah pegawai outsourcing tidak ada",null,null,"c.","POS direviu Insidentil dan diperbarui"]
[null,null,null,"d.","Jumlah User Remote Trading sama dengan jumlah WPE",null,null,"d.","Memiliki Analisis Beban Kerja pegawai"]
[null,null,null,"e.","Pegawai pada fungsi utama Perusahaan Efek sebagian besar memiliki izin WPE",null,null,"e.","Tidak Memiliki daftar WPE tercela"]
[null,null,"Peringkat 3","a.","Turnover pegawai <5% dimana < 50%  pegawai inti",null,"Peringkat 3","a.","Tidak memiliki POS rekrutmen pegawai"]
[null,null,null,"b.","Turnover pegawai berizin 5% - 10%",null,null,"b.","Memiliki Kebijakan tertulis mengenai rekrutmen pegawai"]
[null,null,null,"c.","Jumlah pegawai outsourcing (remisier)  < 25% dari tenaga pemasaran  ",null,null,"c.","Kebijakan tertulis tersebut diimplementasikan, diawasi, dan diperiksa"]
[null,null,null,"d.","Jumlah User Remote Trading > jumlah WPE",null,null,"d.","Kebijakan tertulis direviu berkala dan diperbarui"]
[null,null,null,"e.","Hanya Pegawai pada fungsi utama Perusahaan Efek yang diwajibkan berizin telah memiliki izin WPE",null,null,"e.","Memiliki Analisis Beban Kerja pegawai"]
[null,null,null,null,null,null,null,"f.","Tidak memiliki daftar WPE tercela"]
[null,null,"Peringkat 4","a.","Turnover pegawai 5% sd 10%, dimana > 50% pegawai inti",null,"Peringkat 4","a.","Tidak memiliki POS rekrutmen pegawai"]
[null,null,null,"b.","Turnover pegawai berizin 10% sd 50%",null,null,"b.","Memiliki Kebijakan tidak tertulis mengenai rekrutmen pegawai"]
[null,null,null,"c.","Jumlah pegawai outsourcing (remisier) 25% - 50% dari tenaga pemasaran",null,null,"c.","Tidak Memiliki Analisis Beban Kerja pegawai"]
[null,null,null,"d.","Jumlah User Remote Trading > jumlah WPE",null,null,"d.","Tidak Memiliki daftar WPE tercela"]
[null,null,null,"e.","Hanya Pegawai pada fungsi utama Perusahaan Efek yang diwajibkan berizin telah memiliki izin WPE "]
[null,null,"Peringkat 5","a.","Turnover pegawai > 10%, dimana > 50% pegawai inti",null,"Peringkat 5","a.","Tidak Memiliki POS rekrutmen pegawai"]
[null,null,null,"b.","Turnover pegawai berizin > 50%",null,null,"b.","Tidak Memiliki Kebijakan rekrutmen pegawai"]
[null,null,null,"c.","Jumlah pegawai outsourcing (remisier) > 50% dari tenaga pemasaran",null,null,"c.","Tidak Memiliki Analisis Beban Kerja pegawai"]
[null,null,null,"d.","Jumlah User Remote Trading > jumlah WPE",null,null,"d.","Tidak Memiliki daftar WPE tercela"]
[null,null,null,"e.","Ada Pegawai pada fungsi utama Perusahaan Efek yang diwajibkan berizin tidak memiliki izin WPE"]
[null,"Kesimpulan :"]
[]
[null,"2. Human Error","Peringkat 1","a.","Frekuensi kejadian <2 kali dalam 1 tahun",null,"Peringkat 1","a.","Memiliki Approval berjenjang dalam Proses bisnis (4 eyes)"]
[null,null,null,"b.","Berdampak tidak material",null,null,"b.","Memberikan training berkala kepada pegawai"]
[null,null,null,null,null,null,null,"c.","Sanksi 100% ke pelaku"]
[null,null,"Peringkat 2","a.","Frekuensi kejadian 3 kali sd 10 kali ",null,"Peringkat 2","a.","Memiliki Approval berjenjang dalam Proses bisnis (4 eyes)"]
[null,null,null,"b.","Berdampak tidak material",null,null,"b.","Memberikan training berkala kepada pegawai"]
[null,null,null,null,null,null,null,"c.","Batasan frekuensi 3 kali sd 5 kali diganti 100% oleh pelaku"]
[null,null,"Peringkat 3","a.","Frekuensi kejadian 3 kali sd 10 kali ",null,"Peringkat 3","a.","Memiliki Approval berjenjang dalam Proses bisnis (4 eyes)"]
[null,null,null,"b.","Ada yang berdampak material",null,null,"b.","Memberikan training berkala kepada pegawai"]
[null,null,null,null,null,null,null,"c.","Batasan frekuensi 6 kali sd 10 kali diganti 100% oleh pelaku"]
[null,null,"Peringkat 4","a.","Frekuensi kejadian <10x ",null,"Peringkat 4","a.","Memiliki Approval berjenjang dalam Proses bisnis (4 eyes)"]
[null,null,null,"b.","<50% kejadian humar error berdampak material",null,null,"b.","Tidak memberikan training kepada pegawai"]
[null,null,null,null,null,null,null,"c.","Batasan frekuensi >10 kali diganti 50% oleh pelaku"]
[null,null,"Peringkat 5","a.","Frekuensi kejadian >10x ",null,"Peringkat 5","a.","Tidak memiliki Approval berjenjang dalam Proses bisnis (4 eyes)"]
[null,null,null,"b.",">50% kejadian human error berdampak material",null,null,"b.","Tidak memberikan training kepada pegawai"]
[null,null,null,null,null,null,null,"c.","Sanksi 0% ke pelaku"]
[null,"Kesimpulan :"]
[]
[null,"3. Fraud","Peringkat 1","a.","Tidak pernah terjadi fraud",null,"Peringkat 1","a.","Memiliki kebijakan tertulis mengenai anti fraud/ penanganan fraud"]
[null,null,null,null,null,null,null,"b.","Memiliki POS mengenai anti fraud/penanganan fraud"]
[null,null,null,null,null,null,null,"c.","POS dan/atau kebijakan tertulis mengenai anti fraud/ penanganan fraud telah diimplementasikan, diawasi, dan diperiksa"]
[null,null,null,null,null,null,null,"d.","POS dan/atau kebijakan tertulis mengenai anti fraud/ penanganan fraud di reviu berkala dan diperbarui"]
[null,null,null,null,null,null,null,"e.","Langkah perbaikan akibat fraud cepat dan komprehensif"]
[null,null,null,null,null,null,null,"f.","Memiliki kebijakan mitigasi insider trading"]
[null,null,null,null,null,null,null,"g.","Memiliki Kebijakan ganti rugi akibat fraud"]
[null,null,null,null,null,null,null,"h.","Memiliki sanksi yang tegas, konsisten dan progresif"]
[null,null,null,null,null,null,null,"i.","Memiliki kebijakan block leave"]
[null,null,null,null,null,null,"Peringkat 2","a.","Memiliki kebijakan tertulis mengenai anti fraud/ penanganan fraud"]
[null,null,null,null,null,null,null,"b.","Memiliki POS mengenai anti fraud/penanganan fraud"]
[null,null,null,null,null,null,null,"c.","POS dan/atau kebijakan tertulis mengenai anti fraud/ penanganan fraud telah diimplementasikan, diawasi, dan diperiksa"]
[null,null,null,null,null,null,null,"d.","POS dan/atau kebijakan tertulis mengenai anti fraud/ penanganan fraud di reviu secara insidentil dan diperbarui"]
[null,null,null,null,null,null,null,"e.","Langkah perbaikan akibat fraud lambat dan tidak komprehensif"]
[null,null,null,null,null,null,null,"f.","Memiliki kebijakan mitigasi insider trading"]
[null,null,null,null,null,null,null,"g.","Memiliki Kebijakan ganti rugi akibat fraud"]
[null,null,null,null,null,null,null,"h.","Memiliki sanksi yang tegas, konsisten dan progresif"]
[null,null,null,null,null,null,null,"i.","Tidak memiliki kebijakan block leave"]
[null,null,"Peringkat 3","a.","Terjadi fraud ",null,"Peringkat 3","a.","Memiliki kebijakan tertulis mengenai anti fraud/ penanganan fraud"]
[null,null,null,"b.","Nilai kerugian tidak signifikan sehingga apabila PE mengalami kerugian, tidak mengakibatkan rata-rata Nilai  MKBD PE  berada dalam kondisi EWS <120% (Nilai kerugian/( rata-rata MKBD setelah dikurangi nilai minimum yang dipersyaratkan selama 6 bulan)) ",null,null,"b.","Memiliki POS mengenai anti fraud/penanganan fraud"]
[null,null,null,null,null,null,null,"c.","POS dan/atau kebijakan tertulis mengenai anti fraud/ penanganan fraud telah diimplementasikan, diawasi, dan diperiksa"]
[null,null,null,null,null,null,null,"d.","POS dan/atau kebijakan tertulis mengenai anti fraud/ penanganan fraud di reviu secara insidentil dan diperbarui"]
[null,null,null,null,null,null,null,"e.","Langkah perbaikan akibat fraud lambat dan tidak komprehensif"]
[null,null,null,null,null,null,null,"f.","Memiliki kebijakan mitigasi insider trading"]
[null,null,null,null,null,null,null,"g.","Tidak Memiliki Kebijakan ganti rugi akibat fraud"]
[null,null,null,null,null,null,null,"h.","Tidak Memiliki sanksi yang tegas, konsisten dan progresif"]
[null,null,null,null,null,null,null,"i.","Tidak memiliki kebijakan block leave"]
[null,null,"Peringkat 4","a.","Terjadi fraud",null,"Peringkat 4","a.","Memiliki kebijakan anti fraud/ penanganan fraud"]
[null,null,null,"b.","Nilai kerugian sangat signifikan sehingga apabila PE mengalami kerugian yang  mengakibatkan rata-rata Nilai  MKBD PE  berada dalam kondisi EWS <120% (Nilai kerugian/( rata-rata MKBD setelah dikurangi nilai minimum yang dipersyaratkan selama 6 bulan))",null,null,"b.","Tidak Memiliki POS mengenai anti fraud/penanganan fraud"]
[null,null,null,null,null,null,null,"c.","Tidak ada Langkah perbaikan akibat fraud"]
[null,null,null,null,null,null,null,"d.","Memiliki kebijakan mitigasi insider trading"]
[null,null,null,null,null,null,null,"e.","Tidak Memiliki Kebijakan ganti rugi akibat fraud"]
[null,null,null,null,null,null,null,"f.","Tidak Memiliki sanksi yang tegas, konsisten dan progresif"]
[null,null,null,null,null,null,null,"g.","Tidak memiliki kebijakan block leave"]
[null,null,"Peringkat 5","a.","Terjadi fraud",null,"Peringkat 5","a.","Tidak Memiliki kebijakan anti fraud/ penanganan fraud"]
[null,null,null,"b.","Nilai kerugian sangat signifikan sehingga apabila PE mengalami kerugian yang mengakibatkan rata-rata Nilai  MKBD PE tidak memenuhi ketentuan (Nilai kerugian/( rata-rata MKBD setelah dikurangi nilai minimum yang dipersyaratkan selama 6 bulan))",null,null,"b.","Tidak Memiliki POS mengenai anti fraud/penanganan fraud"]
[null,null,null,null,null,null,null,"c.","Tidak ada Langkah perbaikan akibat fraud"]
[null,null,null,null,null,null,null,"d.","Tidak Memiliki kebijakan mitigasi insider trading"]
[null,null,null,null,null,null,null,"e.","Tidak Memiliki Kebijakan ganti rugi akibat fraud"]
[null,null,null,null,null,null,null,"f.","Tidak Memiliki sanksi yang tegas, konsisten dan progresif"]
[null,null,null,null,null,null,null,"g.","Tidak memiliki kebijakan block leave"]
[null,"Kesimpulan :"]
[]
["Kesimpulan :"]
[]
["III. Teknologi Informasi"]
[]
[null,"Indikator Parameter Risiko Inheren","Klasifikasi","Pengukuran Risiko",null,"Keterangan","Klasifikasi",null,"Mitigasi","Keterangan"]
[null,"1. Kegagalan sistem ketika meneruskan pesanan perdagangan (FO)","Peringkat 1","a.","Kompleksitas produk dan transaksi peringkat 1",null,"Peringkat 1","a.","Frekuensi pengujian kapasitas FO (Mock Trading) sesuai kebutuhan, lebih sering dari mock trading wajib di BEI"]
[null,null,null,null,null,null,null,"b.","Mempunyai koneksi lebih dari yang dipersyaratkan BEI (minimal ada 1 back up connection)"]
[null,null,null,null,null,null,null,"c.","Maintenance dilakukan secara berkala sampai dengan sebulan sekali"]
[null,null,null,"b.","Kompleksitas layanan jasa perdagangan peringkat 1",null,null,"d.","Memiliki Business Continuity Plan (BCP) terkait sistem front office dan back office"]
[null,null,null,null,null,null,null,"e.","SDM Teknologi & Informasi cepat dalam menyelesaikan permasalahan Teknologi & Informasi"]
[null,null,null,null,null,null,null,"f.","Dokumentasi Permasalahan Teknologi & Informasi"]
[null,null,"Peringkat 2","a.","Kompleksitas produk dan transaksi peringkat 2",null,"Peringkat 2","a.","Frekuensi pengujian kapasitas FO (Mock Trading) sesuai dengan mock trading wajib di BEI"]
[null,null,null,null,null,null,null,"b.","Mempunyai koneksi lebih dari yang dipersyaratkan BEI (minimal ada 1 back up connection)"]
[null,null,null,null,null,null,null,"c.","Maintenance berkala 1 bulan s.d 3 bulan sekali "]
[null,null,null,"b.","Kompleksitas layanan jasa perdagangan peringkat 2",null,null,"d.","Memiliki Business Continuity Plan (BCP) terkait sistem front office dan back office"]
[null,null,null,null,null,null,null,"e.","SDM Teknologi & Informasi dan vendor cepat dalam menyelesaikan permasalahan Teknologi & Informasi"]
[null,null,"Peringkat 3","a.","Kompleksitas produk dan transaksi peringkat 3",null,"Peringkat 3","a.","Frekuensi pengujian kapasitas FO (Mock Trading) kurang dari mock trading wajib di BEI"]
[null,null,null,null,null,null,null,"b.","Mempunyai koneksi lebih dari 1 (back up connection)"]
[null,null,null,null,null,null,null,"c.","Maintenance sistem berkala 3 bulan s.d 6 bulan sekali"]
[null,null,null,"b.","Kompleksitas layanan jasa perdagangan peringkat 3",null,null,"d.","Memiliki Business Continuity Plan (BCP) terkait sistem front office dan back office"]
[null,null,null,null,null,null,null,"e.","SDM Teknologi & Informasi lambat dalam menyelesaikan permasalahan Teknologi & Informasi"]
[null,null,"Peringkat 4","a.","Kompleksitas produk dan transaksi peringkat 4",null,"Peringkat 4","a.","Frekuensi pengujian kapasitas FO (Mock Trading) kurang dari mock trading wajib di BEI"]
[null,null,null,null,null,null,null,"b.","Mempunyai koneksi lebih dari 1 (back up connection)"]
[null,null,null,null,null,null,null,"c.","Maintenance sistem berkala >6 bulan sekali"]
[null,null,null,"b.","Kompleksitas layanan jasa perdagangan peringkat 4",null,null,"d.","Memiliki Business Continuity Plan (BCP) terkait sistem front office dan back office"]
[null,null,null,null,null,null,null,"e.","SDM Teknologi & Informasi lambat mengeskalasi ke vendor namun vendor cepat dalam menyelesaikan permasalahan Teknologi & Informasi"]
[null,null,"Peringkat 5","a.","Kompleksitas produk dan transaksi peringkat 5",null,"Peringkat 5","a.","Tidak melakukan pengujian kapasitas FO (Mock Trading)"]
[null,null,null,null,null,null,null,"b.","Tidak mempunyai koneksi lebih dari 1 (back up connection)"]
[null,null,null,null,null,null,null,"c.","Tidak maintenance sistem berkala"]
[null,null,null,"b.","Kompleksitas layanan jasa perdagangan peringkat 5",null,null,"d.","Tidak memiliki Business Continuity Plan (BCP) terkait sistem front office dan back office"]
[null,null,null,null,null,null,null,"e.","SDM Teknologi & Informasi lambat mengeskalasi ke vendor dan vendor lambat dalam menyelesaikan permasalahan Teknologi & Informasi"]
[null,"Kesimpulan :"]
[]
[null,"2. Sistem tidak mampu mendukung kompleksitas bisnis perusahaan","Peringkat 1","a.","Pertukaran data BO dengan FO sudah realtime",null,"Peringkat 1","a.","Perusahaan Efek mengembangkan sistem pendukung dan memastikan mendukung sistem utama serta terintegrasi"]
[null,null,null,"b.","Kapasitas sistem FO dan BO (kapasitas penyimpanan) memadai",null,null,"b.","BOFIS sesuai standar dari BEI"]
[null,null,null,"c.","Tidak ada permasalahan sistem",null,null,"c.","Pembaruan kapasitas sistem (penyimpanan) berkala dan memiliki peringatan (alert)"]
[null,null,null,"d.","Kompleksitas produk dan transaksi peringkat 1",null,null,"d.","Frekuensi pengujian kapasitas FO (Mock) sesuai kebutuhan, lebih sering dari mock trading wajib di BEI"]
[null,null,null,"e.","Kompleksitas layanan jasa perdagangan peringkat 1",null,null,"e.","Frekuensi back up setiap hari dan mempunyai co-location server"]
[null,null,null,null,null,null,null,"f.","Pembaharuan (updating) sistem otomatis"]
[null,null,"Peringkat 2","a.","Pertukaran data BO dengan FO sudah batching < 1 jam",null,"Peringkat 2","a.","Perusahaan Efek mengembangkan sistem pendukung dan memastikan mendukung sistem utama serta terintegrasi"]
[null,null,null,"b.","Kapasitas sistem FO dan BO (kapasitas penyimpanan) memadai",null,null,"b.","BOFIS sesuai standar dari BEI"]
[null,null,null,"c.","Ada permasalahan sistem dan berdampak minor ke operasional PE (penerusan pesanan, database, laporan)",null,null,"c.","Pembaruan kapasitas sistem (penyimpanan) berkala namun tidak memiliki peringatan (alert)"]
[null,null,null,"d.","Kompleksitas produk dan transaksi peringkat 2",null,null,"d.","Frekuensi pengujian kapasitas FO (Mock) sesuai dengan mock trading wajib di BEI"]
[null,null,null,"e.","Kompleksitas layanan jasa perdagangan peringkat 2",null,null,"e.","Frekuensi back up setiap hari dan mempunyai co-location server"]
[null,null,null,null,null,null,null,"f.","Pembaharuan (updating) sistem tidak otomatis"]
[null,null,"Peringkat 3","a.","Pertukaran data BO dengan FO sudah batching per sesi Perdagangan BEI",null,"Peringkat 3","a.","Perusahaan Efek mengembangkan sistem pendukung dan memastikan mendukung sistem utama namun tidak terintegrasi"]
[null,null,null,"b.","Kapasitas sistem FO dan BO (kapasitas penyimpanan) memadai",null,null,"b.","BOFIS sesuai standar dari BEI"]
[null,null,null,"c.","Ada permasalahan sistem dan berdampak minor ke operasional PE (penerusan pesanan, database, laporan)",null,null,"c.","Pembaruan kapasitas sistem (penyimpanan) tidak terjadwal dan tidak memiliki peringatan (alert)"]
[null,null,null,"d.","Kompleksitas produk dan transaksi peringkat 3",null,null,"d.","Frekuensi pengujian kapasitas FO (Mock) sesuai dengan mock trading wajib di BEI"]
[null,null,null,"e.","Kompleksitas layanan jasa perdagangan peringkat 3",null,null,"e.","Frekuensi back up setiap hari dan mempunyai tidak punya co-location server"]
[null,null,null,null,null,null,null,"f.","Pembaharuan (updating) sistem tidak otomatis"]
[null,null,"Peringkat 4","a.","Pertukaran data BO dengan FO sudah batching 1 hari",null,"Peringkat 4","a.","Perusahaan Efek mengembangkan sistem pendukung dan memastikan mendukung sistem utama namun tidak terintegrasi"]
[null,null,null,"b.","Kapasitas sistem FO dan BO (kapasitas penyimpanan) memadai",null,null,"b.","BOFIS sesuai standar dari BEI"]
[null,null,null,"c.","Sering ada permasalahan sistem dan berdampak minor ke operasional PE (penerusan pesanan, database, laporan)",null,null,"c.","Pembaruan kapasitas sistem (penyimpanan) tidak terjadwal dan tidak memiliki peringatan (alert)"]
[null,null,null,"d.","Kompleksitas produk dan transaksi peringkat 4",null,null,"d.","Frekuensi pengujian kapasitas FO (Mock) sesuai dengan mock trading wajib di BEI"]
[null,null,null,"e.","Kompleksitas layanan jasa perdagangan peringkat 4",null,null,"e.","Frekuensi back up setiap hari dan mempunyai tidak punya co-location server"]
[null,null,null,null,null,null,null,"f.","Pembaharuan (updating) sistem tidak otomatis"]
[null,null,"Peringkat 5","a.","Pertukaran data BO dengan FO sudah batching 1 hari",null,"Peringkat 5","a.","Perusahaan Efek mengembangkan sistem pendukung dan memastikan mendukung sistem utama namun tidak terintegrasi"]
[null,null,null,"b.","Kapasitas sistem FO dan BO (kapasitas penyimpanan) tidak memadai",null,null,"b.","BOFIS tidak sesuai standar dari BEI"]
[null,null,null,"c.","Sering ada permasalahan sistem dan berdampak major ke operasional PE (penerusan pesanan, database, laporan)",null,null,"c.","Pembaruan kapasitas sistem (penyimpanan) tidak terjadwal dan tidak memiliki peringatan (alert)"]
[null,null,null,"d.","Kompleksitas produk dan transaksi peringkat 4",null,null,"d.","Frekuensi pengujian kapasitas FO (Mock) tidak pernah dilakukan (mock trading wajib di BEI tidak pernah)"]
[null,null,null,"e.","Kompleksitas layanan jasa perdagangan peringkat 4",null,null,"e.","Tidak dilakukan back up setiap hari dan mempunyai tidak punya co-location server"]
[null,null,null,null,null,null,null,"f.","Pembaharuan (updating) sistem tidak otomatis"]
[null,"Kesimpulan :"]
[]
[null,"3. Sistem masih dapat diintervensi manual","Peringkat 1","a.","Sistem utama telah sesuai dengan kompleksitas bisnis Perusahaan (FO) – tidak ada sistem pendukung",null,"Peringkat 1","a.","Telah diberikan hak akses"]
[null,null,null,"b.","Pertukaran data BO dengan FO sudah realtime",null,null,"b.","Memiliki POS sistem pada jasa perdagangan"]
[null,null,null,"c.","Kompleksitas layanan Jasa Perdagangan peringkat 1",null,null,"c.","POS diimplementasikan, diawasi, dan diperiksa"]
[null,null,null,"d.","Tidak ada layanan automated ordering",null,null,"d.","POS direviu berkala dan diperbarui"]
[null,null,null,"e.","Tidak ada Jumlah algo trading",null,null,"e.","Memiliki kebijakan penanganan kesalahan automated trading"]
[]
[null,null,"Peringkat 2","a.","Sistem utama belum sesuai dengan kompleksitas bisnis Perusahaan (FO), sistem pendukung sedikit dan terintegrasi",null,"Peringkat 2","a.","Telah diberikan hak akses"]
[null,null,null,"b.","Pertukaran data BO dengan FO sudah otomasi dan batching < 1 jam",null,null,"b.","Memiliki POS sistem pada jasa perdagangan"]
[null,null,null,"c.","Kompleksitas layanan Jasa Perdagangan peringkat 2",null,null,"c.","POS diimplementasikan, diawasi, dan diperiksa"]
[null,null,null,"d.","Ada layanan automated ordering,  sistem ada di PE",null,null,"d.","POS Direviu insidentil dan diperbarui"]
[null,null,null,"e.","Jumlah algo trading <5",null,null,"e.","Memiliki kebijakan penanganan kesalahan automated trading"]
[null,null,"Peringkat 3","a.","Sistem utama belum sesuai dengan kompleksitas bisnis Perusahaan (FO), sistem pendukung banyak dan terintegrasi",null,"Peringkat 3","a.","Telah diberikan hak akses, namun belum memadai"]
[null,null,null,"b.","Pertukaran data BO dengan FO sudah otomasi dan batching per sesi perdagangan BEI",null,null,"b.","Memiliki POS sistem pada jasa perdagangan"]
[null,null,null,"c.","Kompleksitas layanan Jasa Perdagangan peringkat 3",null,null,"c.","POS diimplementasikan, diawasi, dan diperiksa"]
[null,null,null,"d.","Ada layanan automated ordering,  sistem ada di Pihak Lain",null,null,"d.","POS Direviu insidentil dan tidak diperbarui"]
[null,null,null,"e.","Jumlah algo trading <5",null,null,"e.","Memiliki kebijakan penanganan kesalahan automated trading"]
[null,null,"Peringkat 4","a.","Sistem utama belum sesuai dengan kompleksitas bisnis Perusahaan (FO), sistem pendukung sedikit dan tidak terintegrasi",null,"Peringkat 4","a.","Telah diberikan hak akses, namun belum memadai"]
[null,null,null,"b.","Pertukaran data BO dengan FO sudah otomasi dan batching 1 hari",null,null,"b.","Tidak memiliki POS sistem pada jasa perdagangan, namun memiliki Kebijakan Tidak Tertulis"]
[null,null,null,"c.","Kompleksitas layanan Jasa Perdagangan peringkat 4",null,null,"c.","Kebijakan Tidak Tertulis diimplementasikan, diawasi, dan diperiksa"]
[null,null,null,"d.","Ada layanan automated ordering,  sistem ada di Pihak Lain",null,null,"d.","Kebijakan Tidak Tertulis direviu insidentil dan diperbarui"]
[null,null,null,"e.","Jumlah algo trading >5",null,null,"e.","Tidak memiliki kebijakan penanganan kesalahan automated trading"]
[null,null,"Peringkat 5","a.","Sistem utama belum sesuai dengan kompleksitas bisnis Perusahaan (FO), sistem pendukung banyak dan tidak terintegrasi",null,"Peringkat 5","a.","Tidak ada hak akses."]
[null,null,null,"b.","Pertukaran data BO dengan FO sudah otomasi dan batching >1 hari",null,null,"b.","Tidak memiliki POS maupun kebijakan mengenai sistem pada jasa perdagangan"]
[null,null,null,"c.","Kompleksitas layanan Jasa Perdagangan peringkat 5"]
[null,null,null,"d.","Ada layanan automated ordering,  sistem ada di Pihak Lain"]
[null,null,null,"e.","Jumlah algo trading >5",null,null,"c.","Tidak memiliki kebijakan penanganan kesalahan automated trading"]
[null,"Kesimpulan :"]
[]
[null,"4. Tidak tersedianya jaringan yang stabil","Peringkat 1","a.","Kompleksitas produk dan transaksi peringkat 1",null,"Peringkat 1","a.","Mempunyai koneksi lebih dari yang dipersyaratkan BEI (minimal ada 1 back up connection)"]
[null,null,null,null,null,null,null,"b.","Maintenance dilakukan secara berkala sampai dengan sebulan sekali"]
[null,null,null,"b.","Kompleksitas layanan jasa perdagangan peringkat 1",null,null,"c.","Memiliki Business Continuity Plan (BCP) terkait sistem front office dan back office"]
[null,null,null,null,null,null,null,"d.","SDM IT cepat dalam menyelesaikan permasalahan IT"]
[null,null,"Peringkat 2","a.","Kompleksitas produk dan transaksi peringkat 2",null,"Peringkat 2","a.","Mempunyai koneksi lebih dari yang dipersyaratkan BEI (minimal ada 1 back up connection)"]
[null,null,null,null,null,null,null,"b.","Maintenance berkala 1 bulan s.d 3 bulan sekali "]
[null,null,null,"b.","Kompleksitas layanan jasa perdagangan peringkat 2",null,null,"c.","Memiliki Business Continuity Plan (BCP) terkait sistem front office dan back office"]
[null,null,null,null,null,null,null,"d.","SDM IT dan vendor cepat dalam menyelesaikan permasalahan IT"]
[null,null,"Peringkat 3","a.","Kompleksitas produk dan transaksi peringkat 3",null,"Peringkat 3","a.","Mempunyai koneksi lebih dari 1 (back up connection)"]
[null,null,null,null,null,null,null,"b.","Maintenance sistem berkala 3 bulan s.d 6 bulan sekali"]
[null,null,null,"b.","Kompleksitas layanan jasa perdagangan peringkat 3",null,null,"c.","Memiliki Business Continuity Plan (BCP) terkait sistem front office dan back office"]
[null,null,null,null,null,null,null,"d.","SDM IT lambat dalam menyelesaikan permasalahan IT"]
[null,null,"Peringkat 4","a.","Kompleksitas produk dan transaksi peringkat 4",null,"Peringkat 4","a.","Mempunyai koneksi lebih dari 1 (back up connection)"]
[null,null,null,null,null,null,null,"b.","Maintenance sistem berkala >6 bulan sekali"]
[null,null,null,"b.","Kompleksitas layanan jasa perdagangan peringkat 3",null,null,"c.","Memiliki Business Continuity Plan (BCP) terkait sistem front office dan back office"]
[null,null,null,null,null,null,null,"d.","SDM IT lambat mengeskalasi ke vendor namun vendor cepat dalam menyelesaikan permasalahan IT"]
[null,null,"Peringkat 5","a.","Kompleksitas produk dan transaksi peringkat 5",null,"Peringkat 5","a.","Tidak mempunyai koneksi lebih dari 1 (back up connection)"]
[null,null,null,null,null,null,null,"b.","Tidak melakukan maintenance sistem berkala"]
[null,null,null,"b.","Kompleksitas layanan jasa perdagangan peringkat 5",null,null,"c.","Tidak memiliki Business Continuity Plan (BCP) terkait sistem front office dan back office"]
[null,null,null,null,null,null,null,"d.","SDM IT lambat mengeskalasi masalah ke vendor dan vendor lambat dalam menyelesaikan permasalahan IT"]
[null,"Kesimpulan :"]
[]
[null,"5. Kemungkinan sistem diakses oleh pihak yang tidak terotorisasi.","Peringkat 1","a.","Kompleksitas produk dan transaksi peringkat 1",null,"Peringkat 1","a.","Memiliki POS terkait dengan keamanan informasi perusahaan"]
[null,null,null,null,null,null,null,"b.","POS diimplementasikan, diawasi, dan diperiksa"]
[null,null,null,null,null,null,null,"c.","Reviu berkala POS terkait dengan kemanan Informasi perusahaan dan diperbarui"]
[null,null,null,null,null,null,null,"d.","Perusahaan Memiliki mekanisme validasi instruksi transaksi yang komprehensif"]
[null,null,null,null,null,null,null,"e.","Perusahaan Memiliki Infrastruktur Jaringan yang  sudah dilengkapi dengan Firewall, Intrusion Prevention System (IPS), atau Intrusion Detection System (IDS)"]
[null,null,null,null,null,null,null,"f.","Pembaharuan (updating) Antivirus dilakukan secara rutin"]
[null,null,null,null,null,null,null,"g.","Perusahaan memiliki aturan pembuatan kombinasi password"]
[null,null,null,null,null,null,null,"h.","Perusahaan melakukan pergantian password administrator sistem front office dan back office secara rutin"]
[null,null,null,"b.","Kompleksitas layanan jasa perdagangan peringkat 1",null,null,"i.","Perusahaan Memiliki perbandingan yang sesuai antara Jumlah tenaga IT dengan jumlah sistem informasi."]
[null,null,null,null,null,null,null,"j.","Perusahaan tidak mengizinkan pertukaran informasi melalui flash disk, email pribadi, dan media penyimpanan data lainnya"]
[null,null,null,null,null,null,null,"k.","Perusahaan melakukan pencatatan atas setiap aktivitas user untuk setiap sistem informasi"]
[null,null,null,null,null,null,null,"l.","Perusahaan memiliki clean desk policy"]
[null,null,null,null,null,null,null,"m.","Membatasi hak akses fisik ke ruangan server"]
[null,null,null,null,null,null,null,"n.","Melakukan sosialisasi terkait keamanan sistem"]
[null,null,null,null,null,null,null,"o.","Memiliki area development untuk pengembangan"]
[null,null,null,null,null,null,null,"p.","Memiliki perjanjian Kerahasiaan Data dengan vendor "]
[null,null,"Peringkat 2","a.","Kompleksitas produk dan transaksi peringkat 2",null,"Peringkat 2","a.","Perusahaan memiliki POS terkait dengan keamanan Informasi Perusahaan"]
[null,null,null,null,null,null,null,"b.","POS diimplementasikan, diawasi, dan diperiksa"]
[null,null,null,null,null,null,null,"c.","Perusahaan melakukan reviu POS secara insidentil terkait dengan kemanan Informasi perusahaan dan diperbarui"]
[null,null,null,null,null,null,null,"d.","Perusahaan memiliki mekanisme validasi instruksi transaksi yang komprehensif"]
[null,null,null,null,null,null,null,"e.","Perusahaan Memiliki Infrastruktur Jaringan yang  sudah dilengkapi dengan Firewall, Intrusion Prevention System (IPS), atau Intrusion Detection System (IDS)"]
[null,null,null,null,null,null,null,"f.","Pembaharuan (updating) Antivirus dilakukan secara rutin"]
[null,null,null,null,null,null,null,"g.","Perusahaan Tidak memiliki aturan pembuatan kombinasi password"]
[null,null,null,"b.","Kompleksitas layanan jasa perdagangan peringkat 2",null,null,"h.","Perusahaan melakukan pergantian password administrator sistem front office dan back office secara rutin"]
[null,null,null,null,null,null,null,"i.","Perusahaan memiliki perbandingan 1:1 antara Jumlah Tenaga IT dengan Jumlah Sistem Informasi, tidak ada backup untuk setiap Sistem informasi"]
[null,null,null,null,null,null,null,"j.","Perusahaan mengizinkan pertukaran informasi melalui flash disk, email pribadi, dan media penyimpanan data lainnya"]
[null,null,null,null,null,null,null,"k.","Perusahaan melakukan pencatatan atas setiap aktivitas user untuk setiap sistem informasi"]
[null,null,null,null,null,null,null,"l.","Perusahaan Tidak memiliki clean desk policy"]
[null,null,null,null,null,null,null,"m.","Membatasi hak akses fisik ke ruangan server"]
[null,null,null,null,null,null,null,"n.","Tidak Melakukan sosialisasi terkait keamanan sistem"]
[null,null,null,null,null,null,null,"o.","Memiliki area development untuk pengembangan"]
[null,null,null,null,null,null,null,"p.","Memiliki perjanjian Kerahasiaan Data dengan vendor"]
[null,null,"Peringkat 3","a.","Kompleksitas produk dan transaksi peringkat 3",null,"Peringkat 3","a.","Perusahaan memiliki POS terkait dengan keamanan Informasi Perusahaan"]
[null,null,null,null,null,null,null,"b.","POS diimplementasikan, diawasi, dan diperiksa"]
[null,null,null,null,null,null,null,"c.","Perusahaan melakukan reviu POS secara insidentil terkait dengan kemanan Informasi perusahaan dan tidak diperbarui"]
[null,null,null,null,null,null,null,"d.","Perusahaan Memiliki mekanisme validasi instruksi transaksi yang komprehensif"]
[null,null,null,null,null,null,null,"e.","Perusahaan Memiliki Infrastruktur Jaringan yang  sudah dilengkapi dengan Firewall, Intrusion Prevention System (IPS), atau Intrusion Detection System (IDS)"]
[null,null,null,null,null,null,null,"f.","Pembaharuan (updating) Antivirus dilakukan secara rutin"]
[null,null,null,null,null,null,null,"g.","Perusahaan Tidak memiliki aturan pembuatan kombinasi password"]
[null,null,null,"b.","Kompleksitas layanan jasa perdagangan peringkat 3",null,null,"h.","Perusahaan melakukan pergantian password administrator sistem front office dan back office secara rutin"]
[null,null,null,null,null,null,null,"i.","Perusahaan memiliki perbandingan > 1:2 antara Jumlah Tenaga IT dengan Jumlah Sistem Informasi, tidak ada Backup untuk setiap SIstem informasi"]
[null,null,null,null,null,null,null,"j.","Perusahaan mengizinkan pertukaran informasi melalui flash disk, email pribadi, dan media penyimpanan data lainnya"]
[null,null,null,null,null,null,null,"k.","Perusahaan melakukan pencatatan atas setiap aktivitas user untuk setiap sistem informasi"]
[null,null,null,null,null,null,null,"l.","Perusahaan Tidak memiliki clean desk policy"]
[null,null,null,null,null,null,null,"m.","Membatasi hak akses fisik ke ruangan server"]
[null,null,null,null,null,null,null,"n.","Tidak melakukan sosialisasi terkait keamanan sistem"]
[null,null,null,null,null,null,null,"o.","Memiliki area development untuk pengembangan"]
[null,null,null,null,null,null,null,"p.","Memiliki perjanjian Kerahasiaan Data dengan vendor"]
[null,null,"Peringkat 4","a.","Kompleksitas produk dan transaksi peringkat 4",null,"Peringkat 4","a.","Perusahaan Tidak memiliki POS terkait dengan keamanan Informasi Perusahaan, tetapi memiliki Kebijakan Tidak Tertulis"]
[null,null,null,null,null,null,null,"b.","Kebijakan Tidak Tertulis diimplementasikan, diawasi, dan diperiksa"]
[null,null,null,null,null,null,null,"c.","Kebijakan Tidak Tertulis tersebut direviu insidentil dan diperbarui"]
[null,null,null,null,null,null,null,"d.","Perusahaan Memiliki mekanisme validasi instruksi transaksi yang komprehensif"]
[null,null,null,null,null,null,null,"e.","Perusahaan Memiliki Infrastruktur Jaringan yang  sudah dilengkapi dengan Firewall, Intrusion Prevention System (IPS), atau Intrusion Detection System (IDS)"]
[null,null,null,null,null,null,null,"f.","Pembaharuan (updating) Antivirus dilakukan secara rutin"]
[null,null,null,null,null,null,null,"g.","Perusahaan Tidak memiliki aturan pembuatan kombinasi password"]
[null,null,null,"b.","Kompleksitas layanan jasa perdagangan peringkat 4",null,null,"h.","Perusahaan Tidak melakukan pergantian password administrator sistem front office dan back office secara rutin"]
[null,null,null,null,null,null,null,"i.","Perusahaan memiliki perbandingan  > 1:5 antara Jumlah Tenaga IT dengan Jumlah Sistem Informasi, tidak ada Backup untuk setiap SIstem informasi"]
[null,null,null,null,null,null,null,"j.","Perusahaan mengizinkan pertukaran informasi melalui flash disk, email pribadi, dan media penyimpanan data lainnya"]
[null,null,null,null,null,null,null,"k.","Perusahaan Tidak melakukan pencatatan atas setiap aktivitas user untuk setiap sistem informasi"]
[null,null,null,null,null,null,null,"l.","Perusahaan Tidak memiliki clean desk policy"]
[null,null,null,null,null,null,null,"m.","Membatasi hak akses fisik ke ruangan server"]
[null,null,null,null,null,null,null,"n.","Melakukan sosialisasi terkait keamanan sistem"]
[null,null,null,null,null,null,null,"o.","Memiliki area development untuk pengembangan"]
[null,null,null,null,null,null,null,"p.","Memiliki perjanjian Kerahasiaan Data dengan vendor"]
[null,null,"Peringkat 5","a.","Kompleksitas produk dan transaksi peringkat 5",null,"Peringkat 5","a.","Perusahaan Tidak memiliki POS maupun kebijakan terkait dengan keamanan Informasi Perusahaan"]
[null,null,null,null,null,null,null,"b","Perusahaan Tidak Memiliki mekanisme validasi instruksi transaksi yang komprehensif"]
[null,null,null,null,null,null,null,"c.","Perusahaan Tidak Memiliki Infrastruktur Jaringan yang  sudah dilengkapi dengan Firewall, Intrusion Prevention System (IPS), atau Intrusion Detection System (IDS)"]
[]
[null,null,null,null,null,null,null,"d.","Pembaharuan (updating) Antivirus dilakukan secara rutin"]
[null,null,null,null,null,null,null,"e.","Perusahaan Tidak memiliki aturan pembuatan kombinasi password"]
[null,null,null,null,null,null,null,"f.","Perusahaan Tidak melakukan pergantian password administrator sistem front office dan back office secara rutin"]
[null,null,null,"b.","Kompleksitas layanan jasa perdagangan peringkat 5",null,null,"g.","Perusahaan memiliki perbandingan  > 1:5 antara Jumlah Tenaga IT dengan Jumlah Sistem Informasi, tidak ada Backup untuk setiap SIstem informasi"]
[null,null,null,null,null,null,null,"h.","Perusahaan mengizinkan pertukaran informasi melalui flash disk, email pribadi, dan media penyimpanan data lainnya"]
[null,null,null,null,null,null,null,"i.","Perusahaan Tidak melakukan pencatatan atas setiap aktivitas user untuk setiap sistem informasi"]
[null,null,null,null,null,null,null,"j.","Perusahaan Tidak memiliki clean desk policy"]
[null,null,null,null,null,null,null,"k.","Tidak Membatasi hak akses fisik ke ruangan server"]
[null,null,null,null,null,null,null,"l.","Tidak Melakukan sosialisasi terkait keamanan sistem"]
[null,null,null,null,null,null,null,"m.","Tidak Memiliki area development untuk pengembangan"]
[null,null,null,null,null,null,null,"n.","Tidak Memiliki perjanjian Kerahasiaan Data dengan vendor"]
[]
[null,"Kesimpulan :"]
[]
["Kesimpulan :"]

{"sheet":"2. Kredit","index":1,"n_rows":110,"n_cols":9,"rows_kept":110,"cut":false,"hidden":false,"merged":[[63,3,64,3],[66,3,67,3],[39,1,42,1],[43,1,46,1],[49,1,51,1],[52,1,54,1],[55,1,57,1],[62,1,64,1],[65,1,67,1],[79,3,80,3],[82,3,83,3],[81,1,83,1],[84,1,86,1],[87,1,89,1],[90,1,91,1],[94,1,96,1],[0,0,0,8],[5,0,5,8],[6,2,6,3],[7,0,25,0],[28,0,46,0],[49,0,59,0],[62,0,75,0],[78,0,91,0],[94,0,108,0],[7,1,9,1],[10,1,13,1],[14,1,17,1],[18,1,21,1],[22,1,25,1],[28,1,30,1],[31,1,34,1],[35,1,38,1],[97,1,99,1],[100,1,102,1],[103,1,105,1],[106,1,108,1],[8,2,9,2],[29,2,30,2],[49,2,51,2],[52,2,54,2],[55,2,57,2],[63,2,64,2],[66,2,67,2],[69,2,70,2],[72,2,73,2],[79,2,80,2],[82,2,83,2],[85,2,86,2],[88,2,89,2],[95,2,96,2],[68,1,70,1],[71,1,73,1],[74,1,75,1],[78,1,80,1],[85,3,86,3],[88,3,89,3],[95,3,96,3],[8,4,9,4],[29,4,30,4],[49,4,51,4],[52,4,54,4],[55,4,57,4],[63,4,64,4],[66,4,67,4],[69,4,70,4],[72,4,73,4],[79,4,80,4],[82,4,83,4],[85,4,86,4],[88,4,89,4],[95,4,96,4],[8,3,9,3],[29,3,30,3],[49,3,51,3],[52,3,54,3],[55,3,57,3],[69,3,70,3],[72,3,73,3],[55,5,57,5],[62,5,64,5],[65,5,67,5],[68,5,70,5],[71,5,73,5],[74,5,75,5],[7,5,9,5],[10,5,13,5],[14,5,17,5],[18,5,21,5],[22,5,25,5],[28,5,30,5],[31,5,34,5],[35,5,38,5],[39,5,42,5],[106,5,108,5],[12,6,13,6],[16,6,17,6],[18,6,21,6],[22,6,25,6],[33,6,34,6],[37,6,38,6],[39,6,42,6],[43,6,46,6],[74,6,75,6],[90,6,91,6],[106,6,108,6],[78,5,80,5],[81,5,83,5],[84,5,86,5],[87,5,89,5],[90,5,91,5],[94,5,96,5],[97,5,99,5],[100,5,102,5],[103,5,105,5],[43,5,46,5],[49,5,51,5],[52,5,54,5],[74,8,75,8],[78,8,80,8],[81,8,83,8],[84,8,86,8],[87,8,89,8],[12,7,13,7],[16,7,17,7],[18,7,21,7],[22,7,25,7],[33,7,34,7],[37,7,38,7],[39,7,42,7],[43,7,46,7],[74,7,75,7],[39,8,42,8],[43,8,46,8],[49,8,51,8],[52,8,54,8],[55,8,57,8],[62,8,64,8],[65,8,67,8],[68,8,70,8],[71,8,73,8],[90,8,91,8],[94,8,96,8],[97,8,99,8],[100,8,102,8],[103,8,105,8],[106,8,108,8],[109,0,110,8],[1,0,2,8],[3,0,4,8],[26,0,27,8],[47,0,48,8],[60,0,61,8],[76,0,77,8],[92,0,93,8],[90,7,91,7],[106,7,108,7],[7,8,9,8],[10,8,13,8],[14,8,17,8],[18,8,21,8],[22,8,25,8],[28,8,30,8],[31,8,34,8],[35,8,38,8]]}
["RISIKO KREDIT"]
["Tujuan:"]
[]
["Kesimpulan :"]
[]
["PARAMETER"]
["Parameter Risiko Inheren","Klasifikasi","Pengukuran Risiko",null,"Keterangan","Klasifikasi",null,"Mitigasi","Keterangan"]
["1. Gagal Serah Nasabah Kelembagaan (NK)","Peringkat 1","a.","Rata-Rata Nilai transaksi beli nasabah kelembagaan sebesar dalam enam bulan terakhir: < Rp1.799.884.553",null,"Peringkat 1","a.","Memiliki POS terkait mekanisme gagal bayar oleh Nasabah Kelembagaan yang memadai"]
[null,null,"b.","Tidak pernah mengalami Gagal Serah Nasabah Kelembagaan ",null,null,"b.","POS diimplementasikan, diawasi dan diperiksa"]
[null,null,null,null,null,null,"c.","POS direviu secara berkala, diperbaharui, dan tidak pernah dilanggar"]
[null,"Peringkat 2","a.","Rata-Rata Nilai transaksi beli nasabah kelembagaan sebesar dalam enam bulan terakhir: Rp1.799.884.553 - Rp64.190.679.274",null,"Peringkat 2","a.","Memiliki POS terkait mekanisme gagal bayar oleh Nasabah Kelembagaan yang memadai"]
[null,null,"b.","Nilai Gagal Serah Nasabah Kelembagaan: 0 < x < Rp1.616.977.677",null,null,"b.","POS diimplementasikan, diawasi dan diperiksa"]
[null,null,"c.","Frekuensi Gagal Serah Nasabah Kelembagaan: 1 kali - 29 kali",null,null,"c.","POS direviu secara insidentil dan diperbarui"]
[null,null,"d.","Frekuensi Mengendap Gagal Serah Nasabah Kelembagaan: 1 kali - 29 kali"]
[null,"Peringkat 3","a.","Rata-Rata Nilai transaksi beli nasabah kelembagaan sebesar dalam enam bulan terakhir: Rp64.190.679.274 - Rp109.565.802.707",null,"Peringkat 3","a.","Memiliki POS terkait mekanisme gagal bayar oleh Nasabah Kelembagaan yang tidak memadai atau kebijakan tertulis selain POS"]
[null,null,"b.","Nilai Gagal Serah Nasabah Kelembagaan: Rp1.616.977.677 - Rp2.425.466.516",null,null,"b.","POS diimplementasikan, Diawasi dan Diperiksa"]
[null,null,"c.","Frekuensi Gagal Serah Nasabah Kelembagaan: 30 kali - 59 kali",null,null,"c.","POS tidak Direviu dan tidak diperbarui"]
[null,null,"d.","Frekuensi Mengendap Gagal Serah Nasabah Kelembagaan: 30 kali - 59 kali"]
[null,"Peringkat 4","a.","Rata-Rata Nilai transaksi beli nasabah kelembagaan sebesar dalam enam bulan terakhir: Rp109.565.802.707 - Rp171.956.597.428",null,"Peringkat 4","a.","Ada kebijakan tetapi tidak tertulis"]
[null,null,"b.","Nilai Gagal Serah Nasabah Kelembagaan: Rp2.425.466.516 - Rp3.990.765.187"]
[null,null,"c.","Frekuensi Gagal Serah Nasabah Kelembagaan: 60 kali - 89 kali"]
[null,null,"d.","Frekuensi Mengendap Gagal Serah Nasabah Kelembagaan: 60 kali - 89 kali"]
[null,"Peringkat 5","a.","Rata-Rata Nilai transaksi beli nasabah kelembagaan sebesar dalam enam bulan terakhir: < Rp171.956.597.428",null,"Peringkat 5","a.","Tidak ada POS ataupun kebijakan"]
[null,null,"b.","Nilai Gagal Serah Nasabah Kelembagaan > Rp3.990.765.187"]
[null,null,"c.","Frekuensi Gagal Serah Nasabah Kelembagaan: > 89 kali"]
[null,null,"d.","Frekeuensi Mengendap Gagal Serah Nasabah Kelembagaan: >89 kali"]
["Kesimpulan :"]
[]
["2. Gagal Serah Perusahaan Efek (PE)","Peringkat 1","a.","Nilai transaksi jual kepada Perusahaan Efek lain dalam enam bulan terakhir: < Rp6.561.167.104",null,"Peringkat 1","a.","Memiliki POS terkait mekanisme gagal serah Perusahaan Efek yang memadai"]
[null,null,"b.","Tidak pernah mengalami Gagal Serah PE lain",null,null,"b.","POS diimplementasikan, diawasi dan diperiksa"]
[null,null,null,null,null,null,"c.","POS direviu secara berkala, diperbaharui, dan tidak pernah dilanggar"]
[null,"Peringkat 2","a.","Nilai transaksi jual kepada Perusahaan Efek lain dalam enam bulan terakhir: Rp6.561.167.104 -Rp12.448.194.326",null,"Peringkat 2","a.","Memiliki POS terkait mekanisme gagal serah Perusahaan Efek yang memadai"]
[null,null,"b.","Nilai Gagal Serah Perusahaan Efek Lainnya: 0 < x < Rp4.041.529.699",null,null,"b.","POS diimplementasikan, diawasi dan diperiksa"]
[null,null,"c.","Frekuensi Gagal Serah Perusahaan Efek Lainnya: 1 kali - 3 kali",null,null,"c.","POS direviu secara insidentil dan diperbarui"]
[null,null,"d.","Frekuensi Mengendap Gagal Serah Perusahaan Efek Lain: 1 kali - 3 kali"]
[null,"Peringkat 3","a.","Nilai transaksi jual kepada Perusahaan Efek lain dalam enam bulan terakhir: Rp12.448.194.326 - Rp17.494.217.660",null,"Peringkat 3","a.","Memiliki POS terkait mekanisme gagal serah Perusahaan Efek yang tidak memadai atau kebijakan tertulis selain POS"]
[null,null,"b.","Nilai Gagal Serah Perusahaan Efek Lainnya: Rp4.041.529.699 -Rp5.837.533.942",null,null,"b.","POS diimplementasikan, diawasi dan diperiksa"]
[null,null,"c.","Frekuensi Gagal Serah Perusahaan Efek Lainnya: 4 kali - 5 kali",null,null,"c.","POS tidak Direviu dan tidak diperbarui"]
[null,null,"d.","Frekuensi Mengendap Gagal Serah Perusahaan Efek Lain: 4 kali - 5 kali"]
[null,"Peringkat 4","a.","Nilai transaksi jual kepada Perusahaan Efek lain dalam enam bulan terakhir: Rp17.494.217.660 - Rp23.381.244.882",null,"Peringkat 4","a.","Ada kebijakan tetapi tidak tertulis"]
[null,null,"b.","Nilai Gagal Serah Perusahaan Efek Lainnya: Rp5.837.533.942 - Rp8.531.540.306"]
[null,null,"c.","Frekuensi Gagal Serah Perusahaan Efek Lainnya: 6 kali - 8 kali"]
[null,null,"d.","Frekuensi Mengendap Gagal Serah Perusahaan Efek Lain: 6 kali - 8 kali"]
[null,"Peringkat 5","a.","Nilai transaksi jual kepada Perusahaan Efek lain dalam enam bulan terakhir: >Rp23.381.244.882",null,"Peringkat 5","a.","Tidak ada POS ataupun kebijakan"]
[null,null,"b.","Nilai Gagal Serah Perusahaan Efek Lainnya: > Rp8.531.540.306"]
[null,null,"c.","Frekuensi Gagal Serah Perusahaan Efek Lainnya: > 8 kali"]
[null,null,"d.","Frekuensi Mengendap Gagal Serah Perusahaan Efek Lain: >8 kali"]
["Kesimpulan :"]
[]
["3. Potensi Tidak tertagihnya transaksi efek  yang tidak dijamin oleh LKP\n","Peringkat 1",".","Nilai transaksi efek Perusahaan Efek dengan counterpart selain LKP yang dilakukan di luar bursa (OTC) dalam 6 bulan terakhir (Juli - Desember 2015): <Rp179.228.264",null,"Peringkat 1","a.","Memiliki POS terkait mekanisme transaksi Perusahaan Efek dengan counterpart selain LKP yang dilakukan di luar bursa yang memadai"]
[null,null,null,null,null,null,"b.","POS diimplementasikan, diawasi dan diperiksa"]
[null,null,null,null,null,null,"c.","POS direviu secara berkala, diperbaharui, dan tidak pernah dilanggar"]
[null,"Peringkat 2",".","Nilai transaksi efek Perusahaan Efek dengan counterpart selain LKP yang dilakukan di luar bursa (OTC) dalam 6 bulan terakhir (Juli - Desember 2015): Rp179.228.264 - Rp21.169.160.282",null,"Peringkat 2","a.","Memiliki POS terkait mekanisme transaksi Perusahaan Efek dengan counterpart selain LKP yang dilakukan di luar bursa yang memadai"]
[null,null,null,null,null,null,"b.","POS diimplementasikan, diawasi dan diperiksa"]
[null,null,null,null,null,null,"c.","POS direviu secara insidentil dan diperbarui"]
[null,"Peringkat 3",".","Nilai transaksi efek Perusahaan Efek dengan counterpart selain LKP yang dilakukan di luar bursa (OTC) dalam 6 bulan terakhir (Juli - Desember 2015): Rp21.169.160.282 - Rp35.162.448.293",null,"Peringkat 3","a.","Memiliki POS terkait mekanisme transaksi Perusahaan Efek dengan counterpart selain LKP yang dilakukan di luar bursa yang tidak memadai atau kebijakan tertulis selain POS"]
[null,null,null,null,null,null,"b.","POS diimplementasikan, diawasi dan diperiksa"]
[null,null,null,null,null,null,"c.","POS tidak Direviu dan tidak diperbarui"]
[null,"Peringkat 4",".","Nilai transaksi efek Perusahaan Efek dengan counterpart selain LKP yang dilakukan di luar bursa (OTC) dalam 6 bulan terakhir (Juli - Desember 2015): Rp35.162.448.293 - Rp56.152.380.310",null,"Peringkat 4","a.","Ada kebijakan tetapi tidak tertulis"]
[null,"Peringkat 5",".","Nilai transaksi efek Perusahaan Efek dengan counterpart selain LKP yang dilakukan di luar bursa (OTC) dalam 6 bulan terakhir (Juli - Desember 2015): >  Rp56.152.380.310",null,"Peringkat 5","a.","Tidak ada POS ataupun kebijakan"]
["Kesimpulan :"]
[]
["4. Pemberian pembiayaan marjin yang agresif (kontrol yg tdk optimal tapi memberikan marjin dalam jumlah besar)\n","Peringkat 1","a.","Rasio Rata-Rata 6 Bulanan Pembiayaan Marjin/Jaminan: <16%",null,"Peringkat 1","a.","Memiliki POS terkait pembiayaan marjin yang memadai mencakup proses pembukaan Rekening Efek Marjin yang telah memuat Hak dan Kewajiban masing-masing pihak, Kriteria Nasabah, Mekanisme margin call, Mekanisme pelaksanaan forced sell, Segregasi wewenang pemberian pembiayaan,Pengenaan haircut, Metode haircut, dan Wewenang masing-masing pihak."]
[null,null,"b.","Rasio Rata-Rata 6 Bulanan Pembiayaan Marjin/Ekuitas: <3%",null,null,"b.","POS diimplementasikan, diawasi dan diperiksa"]
[null,null,null,null,null,null,"c.","POS direviu secara berkala dan diperbaharui"]
[null,"Peringkat 2","a.","Rasio Rata-Rata 6 Bulanan Pembiayaan Marjin/Jaminan: 16%-39%",null,"Peringkat 2","a.","Memiliki POS terkait pembiayaan marjin namun tidak mencakup segregasi wewenang pemberian pembiayaan dan metode perhitungan haircut"]
[null,null,"b.","Rasio Rata-Rata 6 Bulanan Pembiayaan Marjin/Ekuitas: 3%-6%",null,null,"b.","POS diimplementasikan, diawasi dan diperiksa"]
[null,null,null,null,null,null,"c.","POS direviu secara insidentil dan diperbarui"]
[null,"Peringkat 3","a.","Rasio Rata-Rata 6 Bulanan Pembiayaan Marjin/Jaminan: 39%-54%",null,"Peringkat 3","a.","Memiliki POS terkait pembiayaan marjin namun tidak mencakup mekanisme pembukaan rekening marjin, kriteria nasabah dan mekanisme forced sell dan metode perhitungan haircut"]
[null,null,"b.","Rasio Rata-Rata 6 Bulanan Pembiayaan Marjin/Ekuitas: 6%-8%",null,null,"b.","POS diimplementasikan, diawasi dan diperiksa"]
[null,null,null,null,null,null,"c.","POS direviu secara berkala dan diperbaharui"]
[null,"Peringkat 4","a.","Rasio Rata-Rata 6 Bulanan Pembiayaan Marjin/Jaminan: 54%-77%",null,"Peringkat 4","a.","Memiliki POS terkait pembiayaan marjin yang memadai mencakup proses pembukaan Rekening Efek Marjin yang telah memuat hak dan kewajiban masing-masing pihak, Kriteria Nasabah, Mekanisme marjin call, mekanisme pelaksanaan forced sell, Segregasi wewenang pemberian pembiayaan,Pengenaan haircut, Metode haircut, Wewenang masing-masing pihak."]
[null,null,"b.","Rasio Rata-Rata 6 Bulanan Pembiayaan Marjin/Ekuitas: 8%-11%",null,null,"b.","POS tidak diimplementasikan, diawasi dan diperiksa"]
[null,null,null,null,null,null,"c.","POS tidak direviu Berkala dan tidak diperbarui"]
[null,"Peringkat 5","a.","Rasio Rata-Rata 6 Bulanan Pembiayaan Marjin/Jaminan: >77%",null,"Peringkat 5","a.","Tidak ada POS ataupun kebijakan"]
[null,null,"b.","Rasio Rata-Rata 6 Bulanan Pembiayaan Marjin/Ekuitas: >11%"]
["Kesimpulan :"]
[]
["5. Kualitas Transaksi Reverse Repo Tidak Memadai\n","Peringkat 1","a.","Rasio Rata-Rata 6 Bulanan Jaminan/ Rata-Rata 6 Bulanan Transaksi Reverse Repo: > 8 kali",null,"Peringkat 1","a.","Memiliki POS terkait transaksi reverse repo yang memadai mencakup Kriteria Saham, Kriteria Lawan transaksi, Kriteria menentukan piutang reverse repo tidak lancar, mekanisme penyelesaian piutang reverse repo yang tidak lancar, perhitungan ranking liabilities, Metode perhitungan haircut, kriteria dan mekanisme penambahan dan pengurangan jaminan, standar baku perjanjian."]
[null,null,"b.","Rasio Rata-Rata 6 Bulanan Transaksi Reverse Repo/Ekuitas: < 4%",null,null,"b.","POS diimplementasikan, diawasi dan diperiksa"]
[null,null,null,null,null,null,"c.","POS direviu secara berkala dan diperbaharui"]
[null,"Peringkat 2","a.","Rasio Rata-Rata 6 Bulanan Jaminan/ Rata-Rata 6 Bulanan Transaksi Reverse Repo: 8 kali - 5 kali",null,"Peringkat 2","a.","Memiliki POS terkait pembiayaan marjin namun  tidak mencakup kriteria dan mekanisme penambahan/pengurangan jaminan, metode haircut dan perhitungan ranking liabilities"]
[null,null,"b.","Rasio Rata-Rata 6 Bulanan Transaksi Reverse Repo/Ekuitas: 4% - 17%",null,null,"b.","POS diimplementasikan, diawasi dan diperiksa"]
[null,null,null,null,null,null,"c.","POS direviu secara insidentil dan diperbarui"]
[null,"Peringkat 3","a.","Rasio Rata-Rata 6 Bulanan Jaminan/ Rata-Rata 6 Bulanan Transaksi Reverse Repo: 5 kali - 4 kali",null,"Peringkat 3","a.","Memiliki POS terkait pembiayaan marjin namun tidak mencakup kriteria dan mekanisme penyelesaian reverse repo tidak lancar, Standard Baku perjanjian dan kriteria saham dan lawan transaksi"]
[null,null,"b.","Rasio Rata-Rata 6 Bulanan Transaksi Reverse Repo/Ekuitas: 17% - 28%",null,null,"b.","Diimplementasikan, diawasi dan diperiksa"]
[null,null,null,null,null,null,"c.","POS tidak direviu Berkala namun diperbarui"]
[null,"Peringkat 4","a.","Rasio Rata-Rata 6 Bulanan Jaminan/ Rata-Rata 6 Bulanan Transaksi Reverse Repo: 4 kali - 1 kali",null,"Peringkat 4","a.","Memiliki POS terkait transaksi reverse repo yang memadai mencakup Kriteria Saham, Kriteria Lawan transaksi, Kriteria menentukan piutang reverse repo tidak lancar, mekanisme penyelesaian piutang reverse repo yang tidak lancar, perhitungan ranking liabilities, Metode perhitungan haircut, kriteria dan mekanisme penambahan dan pengurangan jaminan, standard baku perjanjian."]
[null,null,"b.","Rasio Rata-Rata 6 Bulanan Transaksi Reverse Repo/Ekuitas: 28% - 41%",null,null,"b.","Tidak diimplementasikan, diawasi dan diperiksa"]
[null,null,null,null,null,null,"c.","Tidak direviu berkala dan tidak diperbarui"]
[null,"Peringkat 5","a.","Rasio Rata-Rata 6 Bulanan Jaminan/ Rata-Rata 6 Bulanan Transaksi Reverse Repo: < 1 kali",null,"Peringkat 5","a.","Tidak ada POS ataupun kebijakan"]
[null,null,"b.","Rasio Rata-Rata 6 Bulanan Transaksi Reverse Repo/Ekuitas: > 41%"]
["Kesimpulan :"]
[]
["6. Pemberian Pembiayaan non-marjin yang tidak sesuai dengan ketentuan\n","Peringkat 1","a.","Tidak ada Transaksi Tplus",null,"Peringkat 1","a.","Memiliki POS terkait pemberian pembiayaan non marjin yang memadai mencakup mekanisme forced sell, kriteria nasabah, haircut saham jaminan, metode haircut dan segregasi wewenang"]
[null,null,"b.","Rasio Transaksi Beli/ (Transaksi Tplus per 2)> 588%",null,null,"b.","POS diimplementasikan, diawasi dan diperiksa"]
[null,null,null,null,null,null,"c.","POS direviu secara berkala dan diperbaharui"]
[null,"Peringkat 2","a.","Rata-Rata 6 Bulanan Total Transaksi Tplus: 0 < x < Rp12.272.998.651",null,"Peringkat 2","a.","Memiliki POS terkait pembiayaan marjin namun  tidak mencakup segregasi wewenang dan metode haircut"]
[null,null,"b.","Rasio Rata-Rata 6 Bulanan Transaksi TPlus/Ekuitas: 0% < x < 3%",null,null,"b.","POS diimplementasikan, diawasi dan diperiksa"]
[null,null,"c.","Rasio Rata-Rata 6 Bulanan Transaksi Beli per (Transaksi Tplus per 2) > 588% -402%",null,null,"c.","POS direviu secara insidentil dan diperbarui"]
[null,"Peringkat 3","a.","Rata-Rata 6 Bulanan Total Transaksi Tplus: Rp12.272.998.650 - Rp19.239.208.170",null,"Peringkat 3","a.","Memiliki POS terkait pembiayaan marjin namun tidak mencakup kriteria nasabah dan mekanisme forced sell "]
[null,null,"b.","Rasio Rata-Rata 6 Bulanan Transaksi TPlus/Ekuitas: 3% - 9%",null,null,"b.","POS diimplementasikan, diawasi dan diperiksa"]
[null,null,"c.","Rasio Rata-Rata 6 Bulanan Transaksi Beli per (Transaksi Tplus per 2): 402% - 277%",null,null,"c.","POS direviu secara berkala dan diperbaharui"]
[null,"Peringkat 4","a.","Rata-Rata 6 Bulanan Total Transaksi Tplus: Rp19.239.208.170 - Rp29.688.522.449",null,"Peringkat 4","a.","Memiliki POS terkait pemberian pembiayaan non marjin yang memadai mencakup mekanisme forced sell, kriteria nasabah, haircut saham jaminan, metode haircut dan segregasi wewenang"]
[null,null,"b.","Rasio Rata-Rata 6 Bulanan Transaksi TPlus/Ekuitas: 9% - 16%",null,null,"b.","POS tidak diimplementasikan, diawasi dan diperiksa"]
[null,null,"c.","Rasio Rata-Rata 6 Bulanan Transaksi Beli per (Transaksi Tplus per 2): 227% - 41%",null,null,"c.","POS tidak direviu Berkala dan Tidak diperbarui"]
[null,"Peringkat 5","a.","Rata-Rata 6 Bulanan Total Transaksi Tplus: > Rp29.688.522.449",null,"Peringkat 5","a.","Tidak ada POS ataupun kebijakan"]
[null,null,"b.","Rasio Rata-Rata 6 Bulanan Transaksi TPlus/Ekuitas: >16%"]
[null,null,"c.","Rasio Rata-Rata 6 Bulanan Transaksi Beli per (Transaksi Tplus per 2): 41%"]
["Kesimpulan :"]

{"sheet":"3. Likuiditas","index":2,"n_rows":153,"n_cols":9,"rows_kept":153,"cut":false,"hidden":false,"merged":[[0,0,0,8],[5,0,5,8],[6,2,6,3],[6,6,6,7],[7,0,26,0],[29,0,45,0],[48,0,62,0],[65,0,84,0],[87,0,96,0],[9,2,10,2],[13,2,14,2],[17,2,18,2],[21,2,22,2],[25,2,26,2],[29,2,33,2],[34,2,37,2],[38,2,41,2],[42,2,43,2],[44,2,45,2],[49,2,52,2],[53,2,56,2],[57,2,60,2],[65,2,67,2],[68,2,70,2],[99,0,128,0],[131,0,151,0],[7,1,10,1],[11,1,14,1],[15,1,18,1],[19,1,22,1],[23,1,26,1],[29,1,33,1],[34,1,37,1],[38,1,41,1],[42,1,43,1],[44,1,45,1],[48,1,52,1],[53,1,56,1],[57,1,60,1],[65,1,70,1],[71,1,75,1],[76,1,80,1],[81,1,82,1],[83,1,84,1],[87,1,89,1],[92,1,93,1],[94,1,96,1],[99,1,102,1],[103,1,108,1],[109,1,114,1],[115,1,121,1],[122,1,128,1],[131,1,135,1],[136,1,139,1],[140,1,143,1],[144,1,147,1],[148,1,151,1],[71,2,72,2],[73,2,75,2],[76,2,78,2],[79,2,80,2],[92,2,93,2],[95,2,96,2],[100,2,101,2],[131,2,133,2],[134,2,135,2],[9,3,10,3],[13,3,14,3],[17,3,18,3],[21,3,22,3],[25,3,26,3],[29,3,33,3],[34,3,37,3],[38,3,41,3],[42,3,43,3],[44,3,45,3],[49,3,52,3],[53,3,56,3],[57,3,60,3],[65,3,67,3],[68,3,70,3],[71,3,72,3],[73,3,75,3],[76,3,78,3],[79,3,80,3],[92,3,93,3],[95,3,96,3],[100,3,101,3],[131,3,133,3],[134,3,135,3],[9,4,10,4],[13,4,14,4],[17,4,18,4],[21,4,22,4],[25,4,26,4],[29,4,33,4],[34,4,37,4],[38,4,41,4],[42,4,43,4],[44,4,45,4],[49,4,52,4],[53,4,56,4],[57,4,60,4],[65,4,67,4],[68,4,70,4],[71,4,72,4],[73,4,75,4],[76,4,78,4],[95,4,96,4],[100,4,101,4],[131,4,133,4],[134,4,135,4],[7,5,10,5],[11,5,14,5],[15,5,18,5],[19,5,22,5],[23,5,26,5],[29,5,33,5],[34,5,37,5],[38,5,41,5],[42,5,43,5],[44,5,45,5],[48,5,52,5],[53,5,56,5],[57,5,60,5],[65,5,70,5],[71,5,75,5],[76,5,80,5],[131,5,135,5],[136,5,139,5],[140,5,143,5],[144,5,147,5],[148,5,151,5],[7,6,10,6],[11,6,14,6],[15,6,18,6],[19,6,22,6],[23,6,26,6],[32,6,33,6],[88,6,89,6],[92,6,93,6],[100,6,101,6],[103,6,108,6],[109,6,114,6],[115,6,121,6],[122,6,123,6],[124,6,125,6],[126,6,128,6],[131,6,132,6],[134,6,135,6],[136,6,137,6],[81,5,82,5],[140,6,141,6],[144,6,147,6],[148,6,151,6],[7,7,10,7],[11,7,14,7],[15,7,18,7],[19,7,22,7],[23,7,26,7],[32,7,33,7],[88,7,89,7],[92,7,93,7],[100,7,101,7],[103,7,108,7],[109,7,114,7],[115,7,121,7],[122,7,123,7],[124,7,125,7],[126,7,128,7],[131,7,132,7],[134,7,135,7],[136,7,137,7],[140,7,141,7],[144,7,147,7],[148,7,151,7],[7,8,10,8],[11,8,14,8],[15,8,18,8],[19,8,22,8],[23,8,26,8],[29,8,31,8],[32,8,33,8],[34,8,37,8],[38,8,41,8],[122,8,123,8],[85,0,86,8],[42,8,43,8],[44,8,45,8],[48,8,52,8],[53,8,56,8],[57,8,60,8],[65,8,70,8],[71,8,75,8],[76,8,80,8],[81,8,82,8],[122,5,128,5],[83,5,84,5],[87,5,89,5],[92,5,93,5],[94,5,96,5],[99,5,102,5],[103,5,108,5],[109,5,114,5],[115,5,121,5],[79,4,80,4],[81,4,82,4],[83,4,84,4],[92,4,93,4],[152,0,153,8],[46,0,47,8],[1,0,2,8],[3,0,4,8],[27,0,28,8],[63,0,64,8],[129,0,130,8],[124,8,125,8],[126,8,128,8],[131,8,132,8],[134,8,135,8],[136,8,137,8],[140,8,141,8],[144,8,147,8],[148,8,151,8],[97,0,98,8],[83,8,84,8],[87,8,89,8],[92,8,93,8],[94,8,96,8],[99,8,102,8],[103,8,108,8],[109,8,114,8],[115,8,121,8]]}
["RISIKO LIKUIDITAS"]
["Tujuan:"]
[]
["Kesimpulan :"]
[]
["PARAMETER"]
["Parameter Risiko Inheren","Klasifikasi","Pengukuran Risiko",null,"Keterangan","Klasifikasi","Mitigasi",null,"Keterangan"]
["1.  Aset lancar tidak dapat melunasi hutang","Peringkat 1","a.","MKBD per MKBD Min: > 502%",null,"Peringkat 1",".","Memiliki kebijakan Aset dan Liabilitas secara tertulis yang diimplementasikan secara konsisten"]
[null,null,"b.","Current ratio: > 304%"]
[null,null,"c.","Cash Ratio: > 100%"]
[]
[null,"Peringkat 2","a.","MKBD per MKBD Min: 502% - 363%",null,"Peringkat 2"]
[null,null,"b.","Current ratio: 304% - 230%"]
[null,null,"c.","Cash Ratio: 100% - 67%"]
[]
[null,"Peringkat 3","a.","MKBD per MKBD Min: 363% - 271%",null,"Peringkat 3",".","Memiliki kebijakan Aset dan Liabilitas secara tidak tertulis yang dilakukan secara konsisten"]
[null,null,"b.","Current ratio: 230% - 175%"]
[null,null,"c.","Cash Ratio: 67% - 49%"]
[]
[null,"Peringkat 4","a.","MKBD per MKBD Min: 271% - 132%",null,"Peringkat 4"]
[null,null,"b.","Current ratio: 175% - 101%"]
[null,null,"c.","Cash Ratio: 49% - 15%"]
[]
[null,"Peringkat 5","a.","MKBD per MKBD Min: < 132%",null,"Peringkat 5",".","Tidak memiliki kebijakan Aset dan Liabilitas"]
[null,null,"b.","Current ratio: < 101%"]
[null,null,"c.","Cash Ratio: <15%"]
[]
["Kesimpulan :"]
[]
["2. Tidak dapat melunasi tagihan KPEI atas transaksi nasabah reguler","Peringkat 1",".","Rasio ((Rata-rata Kas & Setara Kas + Agunan di KPEI)/Rata-rata Hutang KPEI) > 620%",null,"Peringkat 1","a.","Memiliki Kebijakan dan/atau POS pembiayaan non-Marjin (T-Plus) yang sangat memadai "]
[null,null,null,null,null,null,"b.","Kebijakan dan/atau POS diimplementasikan, diawasi, dan diperiksa"]
[null,null,null,null,null,null,"c.","Kebijakan dan/atau POS direviu Berkala dan diperbarui; "]
[null,null,null,null,null,null,"d.","Sangat Mudah meminta tambahan Dana kepada Pemegang Saham."]
[]
[null,"Peringkat 2",".","Rasio ((Rata-rata Kas & Setara Kas + Agunan di KPEI)/Rata-rata Hutang KPEI): 620 - 358%",null,"Peringkat 2","a.","Memiliki Kebijakan dan/atau POS pembiayaan non-Marjin (T-Plus) yang sangat memadai "]
[null,null,null,null,null,null,"b.","Kebijakan dan/atau POS diimplementasikan, diawasi, dan diperiksa"]
[null,null,null,null,null,null,"c.","Kebijakan dan/atau POS direviu secara insidentil dan diperbarui; "]
[null,null,null,null,null,null,"d.","Mudah meminta tambahan Dana kepada Pemegang Saham."]
[null,"Peringkat 3",".","Rasio ((Rata-rata Kas & Setara Kas + Agunan di KPEI)/Rata-rata Hutang KPEI): 358% - 222%",null,"Peringkat 3","a.","Hanya Memiliki Kebijakan selain POS pembiayaan non-Marjin (T-Plus)"]
[null,null,null,null,null,null,"b.","Kebijakan selain POS diimplementasikan, diawasi, dan diperiksa"]
[null,null,null,null,null,null,"c.","Kebijakan selain POS tidak direviu Berkala dan diperbarui; "]
[null,null,null,null,null,null,"d.","Cukup mudah meminta tambahan Dana kepada Pemegang Saham."]
[null,"Peringkat 4",".","Rasio ((Rata-rata Kas & Setara Kas + Agunan di KPEI)/Rata-rata Hutang KPEI): 222% - 121%",null,"Peringkat 4","a.","Kebijakan tidak tertulis terkait pembiayaan non-Marjin (T-Plus) "]
[null,null,null,null,null,null,"b.","Sulit meminta tambahan Dana kepada Pemegang Saham."]
[null,"Peringkat 5",".","Rasio ((Rata-rata Kas & Setara Kas + Agunan di KPEI)/Rata-rata Hutang KPEI): <  121%",null,"Peringkat 5","a.","Tidak memiliki POS ataupun Kebijakan terkait pembiayaan non-Marjin (T-Plus) "]
[null,null,null,null,null,null,"b.","Sangat sulit meminta tambahan Dana kepada Pemegang Saham."]
["Kesimpulan :"]
[]
["3. Transaksi Hutang Repo","Peringkat 1","a.","Tidak melakukan Transaksi Repo",null,"Peringkat 1","a.","POS memiliki hal-hal sebagai berikut: Mekanisme penentuan transaksi repo dan Segregasi wewenang"]
[null,null,"b.","Rasio Rata-rata Kas dan Setara Kas/ Hutang Repo >",null,null,"b.","Kebijakan Transaksi Hutang Repo telah sesuai dengan POJK no.9/POJK.D04/2015"]
[null,null,null,null,null,null,"c.","POS diimplementasikan, diawasi, dan diperiksa"]
[null,null,null,null,null,null,"d.","POS direviu berkala dan diperbarui"]
[null,null,null,null,null,null,"e.","Tidak pernah terjadi pelanggaran terhadap POS"]
[null,"Peringkat 2",".","Rasio Rata-rata Kas dan Setara Kas/ Hutang Repo:",null,"Peringkat 2","a.","POS memiliki hal-hal sebagai berikut: Mekanisme penentuan transaksi repo atau Segregasi wewenang"]
[null,null,null,null,null,null,"b.","Kebijakan Transaksi Hutang Repo telah sesuai dengan POJK no.9/POJK.D04/2015"]
[null,null,null,null,null,null,"c.","POS diimplementasikan, diawasi dan diperiksa"]
[null,null,null,null,null,null,"d.","POS direviu secara insidentil dan tidak diperbarui"]
[null,"Peringkat 3",".","Rasio Rata-rata Kas dan Setara Kas/ Hutang Repo:",null,"Peringkat 3","a.","Kebijakan Transaksi Hutang Repo telah sesuai dengan POJK no.9/POJK.D04/2015"]
[null,null,null,null,null,null,"b.","POS diimplementasikan, diawasi dan diperiksa"]
[null,null,null,null,null,null,"c.","POS tidak direviu berkala dan tidak diperbarui"]
[null,null,null,null,null,null,"d.","Tidak pernah terjadi pelanggaran yang signifikan terhadap POS"]
[null,"Peringkat 4",".","Rasio Rata-rata Kas dan Setara Kas/ Hutang Repo:",null,"Peringkat 4","."," Ada Kebijakan namun tidak tertulis"]
[null,"Peringkat 5",".","Rasio Rata-rata Kas dan Setara Kas/ Hutang Repo:",null,"Peringkat 5",".","Tidak memiliki POS ataupun Kebijakan terkait transaksi hutang Repo"]
["Kesimpulan :"]
[]
["4.  Perusahaan tidak dapat melunasi Pinjaman dana nasabah","Peringkat 1","a.","Rasio Kas dan Setara Kas/ Pinjam Meminjam Dana > 180%",null,"Peringkat 1","a.","Memiliki POS "]
[null,null,null,null,null,null,"b.","POS diimplementasikan, diawasi, dan diperiksa"]
[null,null,null,null,null,null,"c.","POS direviu berkala dan diperbarui"]
[null,null,"b.","Rasio Aktiva Lancar/ Pinjam Meminjam Dana > 630%",null,null,"d.","Seluruh fungsi telah sesuai Peraturan "]
[null,null,null,null,null,null,"e.","Tidak pernah terjadi pelanggaran terkait POS"]
[null,null,null,null,null,null,"f.","Perjanjian sesuai dengan SE Bapepam dan LK Nomor 16"]
[null,"Peringkat 2","a.","Rasio Kas dan Setara Kas/ Pinjam Meminjam Dana: 180% - 133%",null,"Peringkat 2","a.","Memiliki POS "]
[null,null,null,null,null,null,"b.","POS diimplementasikan, diawasi, dan diperiksa"]
[null,null,"b.","Rasio Aktiva Lancar/ Pinjam Meminjam Dana: 630% - 467%",null,null,"c.","POS direviu secara insidentil dan tidak diperbarui"]
[null,null,null,null,null,null,"d.","Tidak pernah terjadi pelanggaran terkait POS"]
[null,null,null,null,null,null,"e.","Perjanjian sesuai dengan SE Bapepam dan LK Nomor 16"]
[null,"Peringkat 3","a.","Rasio Kas dan Setara Kas/ Pinjam Meminjam Dana: 133% - 102%",null,"Peringkat 3","a.","Memiliki POS "]
[null,null,null,null,null,null,"b.","POS diimplementasikan, diawasi, dan diperiksa"]
[null,null,null,null,null,null,"c.","POS tidak direviu berkala dan tidak diperbarui"]
[null,null,"b.","Rasio Aktiva Lancar/ Pinjam Meminjam Dana: 467% - 358%",null,null,"d.","Tidak pernah terjadi pelanggaran yang signifikan terkait POS"]
[null,null,null,null,null,null,"e.","Perjanjian sesuai dengan SE Bapepam dan LK Nomor 16"]
[null,"Peringkat 4","a.","Rasio Kas dan Setara Kas/ Pinjam Meminjam Dana: 102% - 55%",null,"Peringkat 4","a."," Ada Kebijakan namun tidak tertulis"]
[null,null,"b.","Rasio Aktiva Lancar/ Pinjam Meminjam Dana: 358% - 195%",null,null,"b.","Perjanjian sesuai dengan SE Bapepam dan LK Nomor 16"]
[null,"Peringkat 5","a.","Rasio Kas dan Setara Kas/ Pinjam Meminjam Dana: < 55%",null,"Peringkat 5","a.","Tidak memiliki POS ataupun Kebijakan terkait"]
[null,null,"b.","Rasio Aktiva Lancar/ Pinjam Meminjam Dana: < 195%",null,null,"b.","Perjanjian sesuai dengan SE Bapepam dan LK Nomor 16"]
["Kesimpulan:  tidak ada pinjam dana nasabah. Resiko PE dalam kategori rendah"]
[]
["5.  Perusahaan tidak memiliki kemampuan likuiditas ketika melakukan kegiatan penjaminan (cash basis)","Peringkat 1","a.","Rasio Selisih nilai MKBD x 4/ Porsi penjaminan > 198%",null,"Peringkat 1","a.","Terdapat kebijakan mempertimbangkan MKBD dalam melakukan penjaminan"]
[null,null,"b.","Perusahaan memiliki izin penjaminan dan ada/tidak ada penjaminan selama 2015",null,null,"b.","Terdapat kebijakan terkait dana cadangan ketika sedang melakukan penjaminan"]
[null,null,"c.","Tidak ada penjaminan luar negeri"]
[null,"Peringkat 2",".","Rasio Selisih nilai MKBD x 4/ Porsi penjaminan: 198% - 166%",null,"Peringkat 2"]
[null,"Peringkat 3",".","Rasio Selisih nilai MKBD x 4/ Porsi penjaminan: 166% - 138%",null,"Peringkat 3"]
[null,"Peringkat 4",".","Rasio Selisih nilai MKBD x 4/ Porsi penjaminan: 138% - 105%",null,"Peringkat 4"]
[]
[null,"Peringkat 5","a.","Rasio Selisih nilai MKBD x 4/ Porsi penjaminan: < 105%",null,"Peringkat 5","a.","Perusahaan tidak memiliki kebijakan mempertimbangkan MKBD dalam melakukan penjaminan"]
[null,null,"b.","Memiliki Penjaminan Efek listing di luar negeri",null,null,"b.","Perusahaan tidak memiliki kebijakan terkait dana cadangan ketika sedang melakukan penjaminan"]
[null,null,null,null,null,null,"c.","Perusahaan tidak memiliki kebijakan manajemen risiko terkait kemampuan Perusahaan dalam menjamin efek listing di luar negeri"]
["Kesimpulan :"]
[]
["6.  Perusahaan tidak dapat melakukan settlement transaksi nasabah kelembagaan atas gagal terima","Peringkat 1","a.","Tidak pernah terjadi Gagal Terima Nasabah Kelembagaan",null,"Peringkat 1","a.","Terdapat perbedaan kebijakan antara settlement untuk transaksi reguler dan transaksi nego"]
[null,null,"b.","Tidak pernah ada masalah terkait settlement",null,null,"b.","Memiliki kebijakan untuk menghindari potensi gagal serah"]
[]
[null,null,"c.","Dapat dilakukan settlement pada hari yang sama",null,null,"d.","Memiliki kebijakan settlement untuk nasabah luar negeri"]
[null,"Peringkat 2","a.","Rasio Rata-rata Kas dan Setara Kas/ Rata-rata gagal terima Nasabah Kelembagaan > 61 kali",null,"Peringkat 2"]
[null,null,"b.","Rata-rata Nilai Gagal Terima Nasabah Kelembagaan: 0 < x < 93.210.803"]
[null,null,"c.","Frekuensi Gagal Terima Nasabah Kelembagaan: 1 kali - 29 kali"]
[null,null,"d.","Frekuensi Mengendap Gagal Terima Nasabah Kelembagaan: 1 kali - 29 kali"]
[null,null,"e.","Tidak pernah ada masalah terkait settlement"]
[null,null,"f.","Dapat dilakukan settlement pada hari yang sama"]
[null,"Peringkat 3","a.","Rasio Rata-rata Kas dan Setara Kas/ Rata-rata gagal terima Nasabah Kelembagaan: 61 kali - 40 kali",null,"Peringkat 3"]
[null,null,"b.","Rata-rata Nilai Gagal Terima Nasabah Kelembagaan: 93.210.803 - 1.745.338.525"]
[null,null,"c.","Frekuensi Gagal Terima Nasabah Kelembagaan: 30 kali - 59 kali"]
[null,null,"d","Frekuensi Mengendap Gagal Terima Nasabah Kelembagaan: 30 kali - 59 kali"]
[null,null,"e.","Tidak pernah ada masalah terkait settlement"]
[null,null,"f.","Dapat dilakukan settlement pada hari yang sama"]
[null,"Peringkat 4","a.","Rasio Rata-rata Kas dan Setara Kas/ Rata-rata gagal terima Nasabah Kelembagaan: 40 kali - 22 kali",null,"Peringkat 4"]
[null,null,"b.","Rata-rata Nilai Gagal Terima Nasabah Kelembagaan: 1.745.338.525 - 3.161.448.000"]
[null,null,"c.","Frekuensi Gagal Terima Nasabah Kelembagaan: 60 kali - 89 kali"]
[null,null,"d","Frekuensi Mengendap Gagal Terima Nasabah Kelembagaan: 60 kali - 89 kali"]
[null,null,"e.","Tidak pernah ada masalah terkait settlement"]
[null,null,"f.","Dapat dilakukan settlement pada hari yang sama"]
[null,null,"g.","Memiliki Nasabah Kelembagaan yang berlokasi di luar negeri"]
[null,"Peringkat 5","a.","Rasio Rata-rata Kas dan Setara Kas/ Rata-rata gagal terima Nasabah Kelembagaan: < 22 kali",null,"Peringkat 5","a.","Tidak terdapat perbedaan kebijakan antara settlement untuk transaksi reguler dan transaksi nego"]
[null,null,"b.","Rata-rata Nilai Gagal Terima Nasabah Kelembagaan: > 3.161.448.000"]
[null,null,"c.","Frekuensi Gagal Terima Nasabah Kelembagaan > 89 kali",null,null,"b.","Tidak Memiliki kebijakan untuk menghindari potensi gagal serah"]
[null,null,"d","Frekuensi Mengendap Gagal Terima Nasabah Kelembagaan: > 89 kali"]
[null,null,"e.","Pernah ada masalah terkait settlement",null,null,"c.","Tidak Memiliki kebijakan settlement untuk nasabah luar negeri"]
[null,null,"f.","Tidak Dapat dilakukan settlement pada hari yang sama"]
[null,null,"g.","Memiliki Nasabah Kelembagaan yang berlokasi di luar negeri"]
["Kesimpulan :"]
[]
["7.  Perusahaan tidak dapat melakukan settle transaksi atas gagal terima Perusahaan Efek Lainnya","Peringkat 1","a.","Rasio Kas dan Setara Kas/ Rata-rata gagal terima Perusahaan Efek Lainnya > 31 kali",null,"Peringkat 1","a.","Memiliki POS terkait mekanisme gagal terima Perusahaan Efek yang memadai"]
[]
[null,null,null,null,null,null,"b.","POS diimplementasikan, diawasi dan diperiksa"]
[null,null,"b.","Tidak pernah terjadi Gagal Terima",null,null,"c.","POS direviu secara berkala, diperbaharui, dan tidak pernah dilanggar"]
[]
[null,"Peringkat 2","a.","Rasio Kas dan Setara Kas/ Rata-rata gagal terima Perusahaan Efek Lainnya: 31 kali - 20 kali",null,"Peringkat 2","a.","Memiliki POS terkait mekanisme gagal terima Perusahaan Efek yang memadai"]
[null,null,"b.","Nilai Gagal Terima Perusahaan Efek Lainnya: 0 < x < Rp333.788.107"]
[null,null,"c.","Frekuensi Gagal Terima Perusahaan Efek Lainnya: 1 kali - 3 kali",null,null,"b.","POS diimplementasikan, diawasi dan diperiksa"]
[null,null,"d.","Frekuensi Mengendap Gagal Terima Perusahaan Efek Lainnya: 1 kali - 3 kali",null,null,"c.","POS direviu secara insidentil dan diperbarui"]
[null,"Peringkat 3","a.","Rasio Kas dan Setara Kas/ Rata-rata gagal terima Perusahaan Efek Lainnya: 19 kali - 12 kali",null,"Peringkat 3","a.","Memiliki POS terkait mekanisme gagal terima Perusahaan Efek yang tidak memadai atau kebijakan tertulis selain POS"]
[null,null,"b.","Nilai Gagal Terima Perusahaan Efek Lainnya: Rp333.788.107 - Rp3.356.574.164"]
[null,null,"c.","Frekuensi Gagal Terima Perusahaan Efek Lainnya: 4 kali - 5 kali",null,null,"b.","POS diimplementasikan, diawasi dan diperiksa"]
[null,null,"d.","Frekuensi Mengendap Gagal Terima Perusahaan Efek Lainnya: 4 kali - 59 kali",null,null,"c.","POS tidak Direviu dan tidak diperbarui"]
[null,"Peringkat 4","a.","Rasio Kas dan Setara Kas/ Rata-rata gagal terima Perusahaan Efek Lainnya: 11 kali - 1 kali",null,"Peringkat 4",".","Ada kebijakan tetapi tidak tertulis"]
[null,null,"b.","Nilai Gagal Terima Perusahaan Efek Lainnya: Rp3.356.574.164 - Rp5.196.530.894"]
[null,null,"c.","Frekuensi Gagal Terima Perusahaan Efek Lainnya: 6 kali - 8 kali"]
[null,null,"d.","Frekuensi Mengendap Gagal Terima Perusahaan Efek Lainnya: 6 kali - 8 kali"]
[null,"Peringkat 5","a.","Rasio Kas dan Setara Kas/ Rata-rata gagal terima Perusahaan Efek Lainnya: < 1 kali",null,"Peringkat 5",".","Tidak ada POS ataupun kebijakan"]
[null,null,"b.","Nilai Gagal Terima Perusahaan Efek Lainnya: > Rp5.196.530.894"]
[null,null,"c.","Frekuensi Gagal Terima Perusahaan Efek Lainnya > 8 kali"]
[null,null,"d.","Frekuensi Mengendap Gagal Terima Perusahaan Efek Lainnya > 8 kali"]
["Kesimpulan :"]

{"sheet":"4. Pasar","index":3,"n_rows":36,"n_cols":9,"rows_kept":36,"cut":false,"hidden":false,"merged":[[0,0,0,8],[5,0,5,8],[6,2,6,3],[6,6,6,7],[7,0,34,0],[7,1,13,1],[14,1,19,1],[20,1,24,1],[25,1,29,1],[30,1,34,1],[7,5,13,5],[14,5,19,5],[20,5,24,5],[25,5,29,5],[30,5,34,5],[10,6,11,6],[12,6,13,6],[16,6,17,6],[18,6,19,6],[25,6,27,6],[28,6,29,6],[18,7,19,7],[25,7,27,7],[28,7,29,7],[30,7,32,7],[33,7,34,7],[35,0,36,8],[28,8,29,8],[30,8,32,8],[33,8,34,8],[1,0,2,8],[3,0,4,8],[10,8,11,8],[12,8,13,8],[14,8,19,8],[20,8,24,8],[25,8,27,8],[30,6,32,6],[33,6,34,6],[10,7,11,7],[12,7,13,7],[16,7,17,7]]}
["RISIKO PASAR"]
["Tujuan:"]
[]
["Kesimpulan :"]
[]
["PARAMETER"]
["Parameter Risiko Inheren","Klasifikasi","Pengukuran Risiko",null,"Keterangan","Klasifikasi","Mitigasi",null,"Keterangan"]
["1. Perusahaan mengalami kerugian atas kepemilikan Portofolio","Peringkat 1","a.","Rata-Rata nilai Haircut/ Rata-rata nilai pasar wajar: <25%",null,"Peringkat 1","a.","Perusahaan memiliki fungsi Manajemen Risiko yang khusus mengatur kegiatan transaksi Portofolio Efek"]
[null,null,"b.","Rasio Unrealized Loss/Total Aset <5%",null,null,"b.","Memiliki POS dengan cakupan yang memuat alur pengambilan keputusan, kriteria portofolio, dan segregasi wewenang "]
[null,null,"c.","Portofolio milik Perusahaan Efek tidak terkonsentrasi (tidak ada Ranking Liabilities)",null,null,"c.","POS diimplementasikan, diawasi, dan diperiksa"]
[null,null,"d.","Perolehan portofolio dari fungsi Perusahaan Efek sebagai dealer",null,null,"d.","POS direviu berkala dan diperbaharui"]
[null,null,"e.","Rasio Portofolio Perusahaan Efek Terkonsentrasi/ Modal Disetor: <0,29%"]
[null,null,"f.","Kompleksitas Portofolio sesuai dengan kompleksitas produk peringkat 5",null,null,"e.","Tidak pernah terdapat pelanggaran terhadap POS"]
[null,null,"g.","Tidak memiliki portofolio"]
[null,"Peringkat 2","a.","Rata-Rata nilai Haircut/ Rata-rata nilai pasar wajar: 43,98% - 47,95%",null,"Peringkat 2","a.","Perusahaan tidak memiliki fungsi Manajemen Risiko yang khusus mengatur kegiatan transaksi Portofolio Efek"]
[null,null,"b.","Rasio Unrealized Loss/Total Aset: 5% - 10%",null,null,"b.","Terdapat POS terkait pelaksanaan kegiatan usaha sebagai dealer yang memadai"]
[null,null,"c.","Portofolio milik Perusahaan Efek tidak terkonsentrasi (tidak ada Ranking Liabilities)",null,null,"c.","POS diimplementasikan, diawasi, dan diperiksa"]
[null,null,"d.","Perolehan portofolio dari fungsi PE sebagai dealer atau saham oddlot"]
[null,null,"e.","Rasio Portofolio PE Terkonsentrasi/ Modal Disetor: 0,29% - 9,09%",null,null,"d.","POS direviu secara insidentil dan diperbaharui"]
[null,null,"f.","Kompleksitas Portofolio sesuai dengan kompleksitas produk peringkat 4"]
[null,"Peringkat 3","a.","Rata-Rata nilai Haircut/ Rata-rata nilai pasar wajar: 47,95% - 55,90%",null,"Peringkat 3","a.","Perusahaan tidak memiliki fungsi Manajemen Risiko yang khusus mengatur kegiatan transaksi Portofolio Efek"]
[null,null,"b.","Rasio Unrealized Loss/Total Aset: 10% - 25%",null,null,"b.","POS terkait pelaksanaan kegiatan usaha sebagai dealer yang tidak memadai atau hanya terdapat kebijakan lain selain POS"]
[null,null,"c.","Rasio Portofolio PE Terkonsentrasi/ Modal Disetor: 9,09% - 14,95%",null,null,"c.","POS diimplementasikan, diawasi, dan diperiksa"]
[null,null,"d.","Perolehan portofolio dari fungsi PE sebagai dealer atau saham oddlot",null,null,"d.","POS tidak direviu berkala dan tidak diperbaharui"]
[null,null,"e.","Kompleksitas Portofolio sesuai dengan kompleksitas produk peringkat 3",null,null,"e.","Tidak pernah terjadi pelanggaran yang signifikan terhadap POS"]
[null,"Peringkat 4","a.","Rata-Rata nilai Haircut/ Rata-rata nilai pasar wajar: 55,90% - 59,88%",null,"Peringkat 4","a.","Perusahaan tidak memiliki fungsi Manajemen Risiko yang khusus mengatur kegiatan transaksi Portofolio Efek"]
[null,null,"b.","Rasio Unrealized Loss/Total Aset: 25% - 50%"]
[null,null,"c.","Rasio Portofolio PE Terkonsentrasi/ Modal Disetor: 14,95% - 23,75%"]
[null,null,"d.","Perolehan portofolio dari penyerapan penjaminan dari fungsi PE sebagai penjamin emisi, dan/atau jaminan atas pembiayaan dan/atau piutang reverse repo yang telah default (sumber data X.E.1 lampiran 1).",null,null,"b.","Terdapat Kebijakan, namun tidak tertulis"]
[null,null,"e.","Kompleksitas Portofolio sesuai dengan kompleksitas produk peringkat 2"]
[null,"Peringkat 5","a.","Rata-Rata nilai Haircut/ Rata-rata nilai pasar wajar: >59,88%",null,"Peringkat 5","a.","Perusahaan tidak memiliki fungsi Manajemen Risiko yang khusus mengatur kegiatan transaksi Portofolio Efek"]
[null,null,"b.","Rasio Unrealized Loss/Total Aset > 50%"]
[null,null,"c.","Rasio Portofolio PE Terkonsentrasi/ Modal Disetor: >23,75%"]
[null,null,"d.","Perolehan portofolio dari penyerapan penjaminan dari fungsi PE sebagai penjamin emisi, dan/atau jaminan atas pembiayaan dan/atau piutang reverse repo yang telah default (sumber data X.E.1 lampiran 1)",null,null,"b.","Tidak memiliki POS atau kebijakan terkait pelaksanaan kegiatan usaha sebagai dealer "]
[null,null,"e.","Kompleksitas Portofolio sesuai dengan kompleksitas produk peringkat 1"]
["Kesimpulan :"]

{"sheet":"5. Kepatuhan","index":4,"n_rows":26,"n_cols":9,"rows_kept":26,"cut":false,"hidden":false,"merged":[[0,0,0,8],[5,0,5,8],[6,2,6,3],[6,6,6,7],[7,0,24,0],[7,1,11,1],[12,1,14,1],[15,1,18,1],[19,1,21,1],[22,1,24,1],[8,2,9,2],[10,2,11,2],[16,2,17,2],[8,3,9,3],[10,3,11,3],[16,3,17,3],[1,0,2,8],[3,0,4,8],[19,5,21,5],[22,5,24,5],[19,6,21,6],[23,6,24,6],[19,7,21,7],[23,7,24,7],[8,4,9,4],[10,4,11,4],[16,4,17,4],[7,5,11,5],[12,5,14,5],[15,5,18,5],[25,0,26,8],[12,8,14,8],[15,8,17,8],[19,8,21,8],[23,8,24,8]]}
["RISIKO KEPATUHAN"]
["Tujuan:"]
[]
["Kesimpulan :"]
[]
["PARAMETER"]
["Parameter Risiko Inheren","Klasifikasi","Pengukuran Risiko",null,"Keterangan","Klasifikasi","Mitigasi",null,"Keterangan"]
["1. Jumlah Sanksi yang diberikan","Peringkat 1","a.","(Jumlah Teguran tertulis x 5%) + (Denda x 15%), Pembatasan Kegiatan (x30%), Suspensi (x50%) adalah 0 atau tidak pernah mendapatkan teguran tertulis",null,"Peringkat 1","a.","Memiliki POS terkait tindak lanjut atas temuan pemeriksaan OJK dan Bursa"]
[null,null,"b.","Tidak ada denda",null,null,"b.","POS diimplementasikan, diawasi, dan diperiksa"]
[null,null,null,null,null,null,"c.","POS Direviu secara berkala dan diperbaharui"]
[null,null,"c.","Tidak ada pengulangan pelanggaran",null,null,"d.","Seluruh fungsi telah sesuai Peraturan "]
[null,null,null,null,null,null,"e.","Tidak pernah terdapat pelanggaran terhadap POS"]
[null,"Peringkat 2","a.","Jumlah Teguran tertulis (x5%) + Denda (x15%), Pembatasan Kegiatan (x30%), Suspensi (x50%) adalah 0 s.d. >0,25",null,"Peringkat 2","a.","Memiliki POS terkait tindak lanjut atas temuan pemeriksaan OJK dan Bursa"]
[null,null,"b.","Jumlah denda tidak signifikan dibandingkan rata-rata selisih nilai MKBD (3 tahun terakhir) ",null,null,"b.","POS diimplementasikan, diawasi dan diperiksa"]
[null,null,"c.","Tidak ada pengulangan pelanggaran",null,null,"c.","POS direviu secara insidentil dan diperbarui"]
[null,"Peringkat 3","a.","Jumlah Teguran tertulis (x5%) + Denda (x15%), Pembatasan Kegiatan (x30%), Suspensi (x50%) adalah 0,26 s.d. >0,5",null,"Peringkat 3","a.","Hanya memiliki kebijakan tertulis selain POS terkait tindak lanjut atas temuan pemeriksaan OJK dan Bursa"]
[null,null,"b.","Jumlah denda signifikan dibandingkan selisih MKBD tetapi tidak menyebabkan rata-rata MKBD (3 tahun terakhir) masuk EWS",null,null,"b.","Kebijakan tertulis tersebut diimplementasikan, diawasi dan diperiksa"]
[null,null,null,null,null,null,"c.","Kebijakan tertulis tidak direviu secara berkala dan tidak diperbarui"]
[null,null,"c.","Mengulang sebagian kecil temuan sebelumnya",null,null,"d.","Tidak pernah terjadi pelanggaran yang signifikan terhadap Kebijakan Tertulis"]
[null,"Peringkat 4","a.","Jumlah Teguran tertulis (x5%) + Denda (x15%), Pembatasan Kegiatan (x30%), Suspensi (x50%) adalah 0,51 s.d. 1",null,"Peringkat 4",".","Ada kebijakan tetapi tidak tertulis"]
[null,null,"b.","Jumlah denda berpengaruh signifikan dengan selisih MKBD menyebabkan rata-rata MKBD (3 tahun terakhir) masuk EWS (<120%)"]
[null,null,"c.","Mengulang 50% temuan sebelumnya"]
[null,"Peringkat 5","a.","Jumlah Teguran tertulis (x5%) + Denda (x15%), Pembatasan Kegiatan (x30%), Suspensi (x50%) adalah >1",null,"Peringkat 5","a.","Tidak Ada POS dan tidak ada kebijakan"]
[null,null,"b.","Jumlah denda berpengaruh signifikan dengan selisih MKBD menyebabkan rata-rata MKBD (3 tahun terakhir) tidak memenuhi persyaratan minimum",null,null,"b.","Terdapat fungsi-fungsi dalam Perusahaan yang masih perlu disempurnakan dan belum menerapkan ketentuan-ketentuan sesuai Peraturan karena infrastruktur belum memadai"]
[null,null,"c.","Mengulang seluruh temuan sebelumnya"]
["Kesimpulan :"]

{"sheet":"6. Reputasi","index":5,"n_rows":51,"n_cols":10,"rows_kept":51,"cut":false,"hidden":false,"merged":[[32,2,36,2],[37,2,40,2],[41,2,45,2],[46,2,47,2],[0,0,0,9],[5,0,5,9],[6,0,6,9],[7,3,7,4],[7,7,7,8],[1,0,2,9],[3,0,4,9],[8,3,12,3],[14,3,15,3],[18,3,20,3],[32,3,36,3],[30,0,30,9],[31,3,31,4],[31,7,31,8],[7,0,29,0],[31,0,51,0],[8,1,27,1],[32,1,49,1],[8,2,12,2],[13,2,16,2],[17,2,21,2],[22,2,24,2],[25,2,27,2],[8,4,12,4],[14,4,15,4],[18,4,20,4],[32,4,36,4],[8,5,12,5],[14,5,15,5],[18,5,20,5],[32,5,36,5],[10,9,11,9],[22,9,24,9],[25,9,27,9],[32,6,36,6],[28,1,29,9],[22,7,24,7],[25,7,27,7],[22,8,24,8],[25,8,27,8],[8,6,12,6],[13,6,16,6],[17,6,21,6],[22,6,24,6],[25,6,27,6],[50,1,51,9],[37,3,45,5],[37,9,40,9],[41,9,44,9],[46,9,47,9],[48,9,49,9],[41,6,45,6],[46,6,47,6],[48,6,49,6],[48,2,49,2],[37,6,40,6]]}
["RISIKO REPUTASI"]
["Tujuan:"]
[]
["Kesimpulan :"]
[]
["PARAMETER"]
["I. Pengaduan"]
[null,"Indikator Parameter Risiko Inheren","Klasifikasi","Pengukuran Risiko",null,"Keterangan","Klasifikasi","Mitigasi",null,"Keterangan"]
[null,"Frekuensi dan Jenis Pengaduan","Peringkat 1",".","Tidak ada pengaduan",null,"Peringkat 1","a.","Terdapat whistle blowing system"]
[null,null,null,null,null,null,null,"b.","Memiliki SOP dengan cakupan yang memuat alur penerimaan, penanganan, penyelesaian, dan segregasi wewenang "]
[null,null,null,null,null,null,null,"c.","POS diimplementasi, diawasi,  dan diperiksa"]
[null,null,null,null,null,null,null,"d.","POS direviu secara berkala dan diperbarui "]
[null,null,null,null,null,null,null,"e.","Tidak pernah terdapat pelanggaran terhadap POS"]
[null,null,"Peringkat 2","a.","Terdapat Pengaduan dan semua telah selesai ditangani.",null,"Peringkat 2","a.","Tidak terdapat whistle blowing system"]
[null,null,null,"b.","Jenis pengaduan nasabah  kurang signifikan mempengaruhi kinerja Perusahaan Efek  dan hubungan dengan nasabah (Misal: berkaitan dengan layanan)",null,null,"b.","Memiliki SOP dengan cakupan yang memuat alur penerimaan, penanganan, penyelesaian, dan segregasi wewenang "]
[null,null,null,null,null,null,null,"c.","POS diimplementasi, diawasi,  dan diperiksa"]
[null,null,null,"c.","Pengaduan tidak berulang",null,null,"d.","POS direviu secara insidentil dan diperbarui "]
[null,null,"Peringkat 3","a.","Terdapat pengaduan namun beberapa belum selesai ditangani",null,"Peringkat 3","a.","Tidak terdapat whistle blowing system"]
[null,null,null,"b.","Jenis pengaduan nasabah  cukup signifikan mempengaruhi kinerja Perusahaan Efek dan hubungan dengan nasabah",null,null,"b.","Hanya memiliki kebijakan tertulis terkait penanganan pengaduan"]
[null,null,null,null,null,null,null,"c.","Kebijakan tertulis diimplementasikan, diawasi, dan diperiksa"]
[null,null,null,null,null,null,null,"d.","Kebijakan tertulis tidak direviu secara berkala dan tidak diperbarui."]
[null,null,null,"c.","Pengaduan berulang",null,null,"e.","Tidak pernah terjadi pelanggaran yang signifikan terhadap Kebijakan tertulis"]
[null,null,"Peringkat 4","a.","Terdapat pengaduan namun beberapa belum selesai ditangani",null,"Peringkat 4",".","Terdapat kebijakan tetapi tidak tertulis"]
[null,null,null,"b.","Jenis pengaduan nasabah signifikan mempengaruhi kinerja Perusahaan Efek dan hubungan dengan nasabah"]
[null,null,null,"c.","Pengaduan berulang"]
[null,null,"Peringkat 5","a.","Terdapat pengaduan dan semua tidak ditangani",null,"Peringkat 5",".","Tidak memiliki POS dan kebijakan terkait penanganan pengaduan"]
[null,null,null,"b.","Jenis pengaduan nasabah sangat signifikan mempengaruhi kinerja Perusahaan Efek dan hubungan dengan nasabah"]
[null,null,null,"c.","Pengaduan berulang"]
[null,"Kesimpulan :"]
[]
["II. Pemberitaan Negatif","II. Pemberitaan Negatif"]
[null,"Indikator Parameter Risiko Inheren","Klasifikasi","Pengukuran Risiko",null,"Ref","Klasifikasi","Mitigasi",null,"Ref"]
[null,"Frekuensi, jenis, dampak Pemberitaan negatif dan media yang digunakan.","Peringkat 1",".","Tidak pernah menerima pemberitaan negatif",null,"Peringkat 1","a.","Selalu menggunakan hak jawab pemberitaan negatif (jika ada)"]
[null,null,null,null,null,null,null,"b.","Memiliki POS yang memadai mengenai penggunaan hak jawab terkait pemberitaan negatif di media"]
[null,null,null,null,null,null,null,"c.","POS tersebut diimplementasi, diawasi,  dan diperiksa."]
[null,null,null,null,null,null,null,"d.","POS tersebut direviu secara berkala dan diperbarui"]
[null,null,null,null,null,null,null,"e.","Tidak pernah terdapat pelanggaran terhadap POS"]
[null,null,"Peringkat 2","a. Dalam 1 tahun Perusahaan mengalami pemberitaan negatif sebanyak 1-2 kali; dan/atau",null,null,"Peringkat 2","a.","Menggunakan hak jawab pemberitaan negatif sebanyak 75% dari frekuensi pemberitaan"]
[null,null,null,null,null,null,null,"b.","Memiliki POS dengan cakupan yang kurang memadai, namun SOP tersebut diimplementasi, diawasi dan direview."]
[null,null,null,null,null,null,null,"c.","POS tersebut diimplementasi, diawasi,  dan diperiksa."]
[null,null,null,null,null,null,null,"d.","POS direviu secara insidentil dan diperbarui "]
[null,null,"Peringkat 3",null,null,null,"Peringkat 3","a.","Menggunakan hak jawab pemberitaan negatif 50% dari frekuensi pemberitaan"]
[null,null,null,null,null,null,null,"b.","Tidak memiliki SOP namun memiliki Kebijakan Tertulis untuk melakukan implementasi penanganan dan penyelesaian pemberitaan negatif"]
[null,null,null,null,null,null,null,"c.","Kebijakan tertulis tersebut diimplementasikan, diawasi dan diperiksa"]
[null,null,null,null,null,null,null,"d.","Kebijakan tertulis tidak direviu secara berkala dan tidak diperbarui"]
[null,null,null,null,null,null,null,"e.","Tidak pernah terjadi pelanggaran yang signifikan terhadap Kebijakan tertulis"]
[null,null,"Peringkat 4","a.","Pernah mendapatkan pemberitaan negatif",null,"Peringkat 4","a.","Menggunakan hak jawab pemberitaan negatif 25% dari frekuensi pemberitaan"]
[null,null,null,"b.","Jenis Pemberitaan Negatif dan Media Pemberitaan Negatif berdampak signifikan",null,null,"b.","Terdapat kebijakan tetapi tidak tertulis"]
[null,null,"Peringkat 5","a.","Pernah mendapatkan pemberitaan negatif",null,"Peringkat 5","a.","Tidak pernah menggunakan hak jawab pemberitaan negatif "]
[null,null,null,"b.","Jenis Pemberitaan Negatif dan Media Pemberitaan Negatif sangat berdampak signifikan",null,null,"b.","Tidak Ada POS dan tidak ada kebijakan"]
[null,"Kesimpulan :"]

{"sheet":"7. Hukum","index":6,"n_rows":59,"n_cols":9,"rows_kept":59,"cut":false,"hidden":false,"merged":[[0,0,0,8],[5,0,5,8],[7,2,7,3],[7,6,7,7],[8,0,27,0],[8,2,12,2],[14,2,15,2],[18,2,20,2],[8,4,12,4],[13,4,16,4],[18,4,20,4],[23,6,24,6],[26,6,27,6],[23,7,24,7],[26,7,27,7],[8,8,12,8],[8,1,12,1],[13,1,16,1],[17,1,21,1],[22,1,24,1],[25,1,27,1],[39,2,43,2],[44,2,45,2],[46,2,47,2],[30,0,47,0],[50,0,57,0],[30,1,34,1],[35,1,38,1],[39,1,43,1],[44,1,45,1],[46,1,47,1],[50,1,51,1],[53,1,54,1],[56,1,57,1],[50,2,51,2],[53,2,54,2],[56,2,57,2],[46,3,47,3],[50,3,51,3],[53,3,54,3],[8,3,12,3],[14,3,15,3],[18,3,20,3],[30,3,34,3],[35,3,38,3],[56,3,57,3],[30,2,34,2],[35,2,38,2],[56,5,57,5],[30,4,34,4],[35,4,38,4],[39,4,43,4],[44,4,45,4],[46,4,47,4],[39,5,43,5],[44,5,45,5],[46,5,47,5],[50,5,51,5],[53,5,54,5],[39,3,43,3],[44,3,45,3],[17,5,21,5],[22,5,24,5],[25,5,27,5],[30,5,34,5],[35,5,38,5],[58,0,59,8],[50,8,51,8],[1,0,2,8],[3,0,4,8],[28,0,29,8],[48,0,49,8],[13,8,16,8],[30,8,34,8],[35,8,38,8],[39,8,43,8],[44,8,45,8],[50,4,51,4],[53,4,54,4],[56,4,57,4],[8,5,12,5],[13,5,16,5]]}
["RISIKO HUKUM"]
["Tujuan:"]
[]
["Kesimpulan :"]
[]
["PARAMETER"]
[]
["Parameter Risiko Inheren","Klasifikasi","Pengukuran Risiko",null,"Keterangan","Klasifikasi","Mitigasi",null,"Keterangan"]
["Perusahaan menerima gugatan / litigasi","Peringkat 1",".","Tidak terdapat proses Litigasi terhadap Perusahaan Efek yang sedang dijalani",null,"Peringkat 1","a.","Perusahaan Efek menunjuk kuasa hukum/ memiliki staf hukum yang kompeten"]
[null,null,null,null,null,null,"b.","Memiliki POS yang sangat memadai "]
[null,null,null,null,null,null,"c.","POS diimplementasikan, diawasi, dan diperiksa"]
[null,null,null,null,null,null,"d.","POS direviu secara berkala dan diperbarui"]
[null,null,null,null,null,null,"e.","Tidak pernah terdapat pelanggaran terhadap POS"]
[null,"Peringkat 2","a.","Terdapat proses litigasi terhadap Perusahaan Efek oleh nasabah Perusahaan Efek",null,"Peringkat 2","a.","Perusahaan Efek menunjuk kuasa hukum/ memiliki staf hukum yang kompeten"]
[null,null,"b.","Nilai gugatan tidak signifikan (tidak mengakibatkan rata-rata Nilai  MKBD Perusahaan Efek  berada dalam kondisi EWS(<120%))",null,null,"b.","Memiliki POS yang sangat memadai "]
[null,null,null,null,null,null,"c.","POS diimplementasikan, diawasi, dan diperiksa"]
[null,null,"c.","Proses Litigasi ditangani secara memadai.",null,null,"d.","POS direviu secara insidentil dan diperbarui "]
[null,"Peringkat 3","a.","Terdapat proses litigasi terhadap Perusahaan Efek oleh nasabah Perusahaan Efek",null,"Peringkat 3","a.","Perusahaan Efek menunjuk kuasa hukum/ memiliki staf hukum yang kompeten"]
[null,null,"b.","Nilai gugatan tidak signifikan (mengakibatkan rata-rata Nilai  MKBD Perusahaan Efek  berada dalam kondisi EWS(110%< nilai MKBD <120%))",null,null,"b.","Hanya memiliki Kebijakan tertulis"]
[null,null,null,null,null,null,"c.","Kebijakan tertulis tersebut diimplementasikan, diawasi, dan diperiksa"]
[null,null,null,null,null,null,"d.","Kebijakan tertulis tersebut tidak direviu secara berkala dan tidak diperbarui"]
[null,null,"c.","Proses Litigasi ditangani secara memadai.",null,null,"e.","Tidak pernah terjadi pelanggaran yang signifikan terhadap Kebijakan tertulis"]
[null,"Peringkat 4","a.","Terdapat proses litigasi terhadap Perusahaan Efek oleh nasabah Perusahaan Efek",null,"Peringkat 4","a.","Perusahaan Efek menunjuk kuasa hukum/ memiliki staf hukum yang kompeten"]
[null,null,"b.","Nilai gugatan tidak signifikan (mengakibatkan rata-rata Nilai  MKBD Perusahaan Efek  berada dalam kondisi EWS(100% < Nilai MKBD <110%))",null,null,"b.","Ada kebijakan tetapi tidak tertulis "]
[null,null,"c.","Proses Litigasi ditangani secara memadai."]
[null,"Peringkat 5","a.","Terdapat proses litigasi terhadap Perusahaan Efek oleh nasabah Perusahaan Efek",null,"Peringkat 5","a.","Perusahaan Efek tidak menunjuk kuasa hukum/ tidak memiliki staf hukum"]
[null,null,"b.","Nilai gugatan tidak signifikan (mengakibatkan rata-rata Nilai  MKBD Perusahaan Efek tidak dapat memenuhi nilai MKBD minimum yang dipersyaratkan)",null,null,"b.","Tidak memiliki kebijakan "]
[null,null,"c.","Tidak ditangani (tidak menghadiri persidangan/ in absensia)."]
["Kesimpulan :"]
[]
["Perusahaan memiliki Perjanjian dengan Kelemahan Perikatan","Peringkat 1",".","Perjanjian yang dibuat oleh Perusahaan Efek telah sangat memadai.  ",null,"Peringkat 1","a.","Memiliki POS yang sangat memadai "]
[null,null,null,null,null,null,"b.","POS diimplementasikan, diawasi, dan diperiksa"]
[null,null,null,null,null,null,"c.","POS direviu secara berkala dan diperbarui"]
[null,null,null,null,null,null,"d.","Tidak pernah terdapat pelanggaran terhadap POS"]
[null,null,null,null,null,null,"e.","Perusahaan Efek selalu menggunakan forum penyelesaian sengketa"]
[null,"Peringkat 2",".","Perjanjian yang dibuat oleh Perusahaan Efek memadai namun masih terdapat beberapa kelemahan minor. Perjanjian telah direviu oleh konsultan hukum independen namun belum secara berkala, tetapi divisi yang membawahi hukum di Perusahaan Efek telah melakukan reviu secara berkala atas perjanjian yang digunakan Perusahaan Efek. ",null,"Peringkat 2","a.","Memiliki POS yang sangat memadai "]
[null,null,null,null,null,null,"b.","POS diimplementasikan, diawasi, dan diperiksa"]
[null,null,null,null,null,null,"c.","POS direviu secara insidentil dan diperbarui "]
[null,null,null,null,null,null,"d.","Perusahaan Efek selalu menggunakan forum penyelesaian sengketa"]
[null,"Peringkat 3",".","Perjanjian yang dibuat oleh Perusahaan Efek cukup memadai namun dan masih terdapat beberapa kelemahan yang kurang signifikan dan perlu segera diperbaiki. Perusahaan Efek belum sepenuhnya melakukan pengkinian terhadap perjanjian yang digunakan",null,"Peringkat 3","a.","Memiliki Kebijakan tertulis selain SOP"]
[null,null,null,null,null,null,"b.","Kebijakan tertulis tersebut diimplementasikan, diawasi dan diperiksa"]
[null,null,null,null,null,null,"c.","Kebijakan tertulis tidak direviu secara berkala dan tidak diperbarui"]
[null,null,null,null,null,null,"d.","tidak selalu menggunakan forum penyelesaian sengketa"]
[null,null,null,null,null,null,"e.","Tidak pernah terjadi pelanggaran yang signifikan terhadap Kebijakan tertulis"]
[null,"Peringkat 4",".","Perjanjian yang dibuat oleh Perusahaan Efek kurang memadai serta terdapat beberapa kelemahan mayor yang dapat mengakibatkan kesalahan dalam interprestasi perjanjian baik oleh para pihak maupun aparatur penegak hukum. Divisi yang membawahi hukum di Perusahaan Efek kurang memperhatikan perkembangan terkini dalam rangka mereviu secara berkala atas perjanjian yang digunakan oleh Perusahaan Efek.",null,"Peringkat 4","a.","Kebijakan tidak tertulis"]
[null,null,null,null,null,null,"b.","Tidak selalu menggunakan forum penyelesaian sengketa"]
[null,"Peringkat 5",".","Perjanjian yang dibuat oleh Perusahaan Efek sama sekali tidak memadai dan sama sekali tidak pernah direviu sehingga tidak diketahui kelemahannya.",null,"Peringkat 5","a.","Tidak memiliki SOP atau pun Kebijakan terkait pembuatan perjanjian yang digunakan oleh Perusahaan Efek"]
[null,null,null,null,null,null,"b.","Tidak menggunakan forum penyelesaian sengketa"]
["Kesimpulan :"]
[]
["Ketiadaan Peraturan Perundang-undangan","Peringkat 1",".","PE tidak memiliki suatu aktivitas dan produk yang belum ada aturannya dalam peraturan perundang-undangan yang berlaku",null,"Peringkat 1","a.","Aktivitas dan produk yang belum ada aturannya disertai underlying perjanjian dan jaminan yang memadai."]
[null,null,null,null,null,null,"b.","Mendapatkan persetujuan OJK"]
[null,"Peringkat 2","."," PE tidak memiliki suatu aktivitas dan produk yang belum ada aturannya dalam peraturan perundang-undangan yang berlaku",null,"Peringkat 2"]
[null,"Peringkat 3","."," Memasarkan suatu aktivitas dan produk yang belum ada aturannya dalam peraturan perundang-undangan yang berlaku",null,"Peringkat 3","a.","Aktivitas dan produk yang belum ada aturannya  disertai underlying perjanjian dan jaminan yang memadai."]
[null,null,null,null,null,null,"b.","Belum mendapatkan persetujuan OJK"]
[null,"Peringkat 4",".","Memiliki suatu aktivitas dan produk yang belum ada aturannya dalam peraturan perundang-undangan yang berlaku",null,"Peringkat 4"]
[null,"Peringkat 5",".","Menerbitkan suatu aktivitas dan produk yang belum ada aturannya dalam peraturan perundang-undangan yang berlaku",null,"Peringkat 5","a.","Aktivitas dan produk yang belum ada aturannya tidak disertai underlying perjanjian dan jaminan yang memadai."]
[null,null,null,null,null,null,"b.","Tidak Mendapatkan persetujuan OJK"]
["Kesimpulan :"]

{"sheet":"8. Strategis","index":7,"n_rows":109,"n_cols":9,"rows_kept":109,"cut":false,"hidden":false,"merged":[[0,0,0,8],[5,0,5,8],[6,6,6,7],[7,0,31,0],[33,0,58,0],[60,0,81,0],[83,0,107,0],[7,1,11,1],[12,1,16,1],[17,1,21,1],[22,1,26,1],[27,1,31,1],[33,1,37,1],[38,1,42,1],[43,1,47,1],[48,1,52,1],[53,1,58,1],[60,1,64,1],[65,1,68,1],[69,1,72,1],[73,1,76,1],[77,1,81,1],[83,1,87,1],[88,1,92,1],[93,1,97,1],[98,1,102,1],[103,1,107,1],[14,2,16,2],[23,2,26,2],[40,2,42,2],[49,2,52,2],[75,2,76,2],[91,2,92,2],[99,2,102,2],[7,3,11,3],[12,3,16,3],[17,3,21,3],[22,3,26,3],[27,3,31,3],[33,3,37,3],[38,3,42,3],[43,3,47,3],[48,3,52,3],[103,3,107,3],[7,4,11,4],[12,4,16,4],[17,4,21,4],[22,4,26,4],[27,4,31,4],[33,4,37,4],[38,4,42,4],[43,4,47,4],[48,4,52,4],[53,4,58,4],[60,4,64,4],[65,4,68,4],[69,4,72,4],[73,4,76,4],[77,4,81,4],[83,4,87,4],[88,4,92,4],[93,4,97,4],[98,4,102,4],[103,4,107,4],[53,3,58,3],[60,3,64,3],[65,3,68,3],[17,5,21,5],[22,5,26,5],[27,5,31,5],[33,5,37,5],[38,5,42,5],[43,5,47,5],[48,5,52,5],[98,3,102,3],[69,3,72,3],[73,3,76,3],[77,3,81,3],[83,3,87,3],[88,3,92,3],[93,3,97,3],[98,5,102,5],[103,5,107,5],[7,6,11,6],[12,6,16,6],[17,6,21,6],[22,6,26,6],[27,6,31,6],[33,6,37,6],[38,6,42,6],[43,6,47,6],[48,6,52,6],[53,6,58,6],[63,6,64,6],[80,6,81,6],[53,5,58,5],[60,5,64,5],[65,5,68,5],[69,5,72,5],[73,5,76,5],[77,5,81,5],[83,5,87,5],[88,5,92,5],[93,5,97,5],[7,5,11,5],[12,5,16,5],[77,8,81,8],[7,7,11,7],[12,7,16,7],[17,7,21,7],[22,7,26,7],[27,7,31,7],[33,7,37,7],[38,7,42,7],[43,7,47,7],[48,7,52,7],[83,8,87,8],[88,8,91,8],[93,8,97,8],[98,8,102,8],[103,8,107,8],[1,0,2,8],[3,0,4,8],[53,7,58,7],[63,7,64,7],[80,7,81,7],[7,8,11,8],[12,8,16,8],[17,8,21,8],[22,8,26,8],[27,8,31,8],[33,8,37,8],[38,8,42,8],[43,8,47,8],[48,8,52,8],[53,8,58,8],[60,8,64,8],[65,8,68,8],[69,8,72,8],[73,8,76,8]]}
["RISIKO STRATEGIS"]
["Tujuan:"]
[]
["Kesimpulan : \n"]
[]
["PARAMETER"]
["Parameter Risiko Inheren","Klasifikasi",null,"Pengukuran Risiko","Keterangan","Klasifikasi","Mitigasi",null,"Keterangan"]
["Kesesuaian Strategi dengan Kondisi Lingkungan Bisnis","Peringkat 1",null,"Perusahaan Efek Anggota Bursa memiliki keunggulan kompetitif yang stabil, dan tidak terdapat ancaman dari kompetitor",null,"Peringkat 1",null,"Secara Umum Sumber daya sangat memadai dari segi kuantitas maupun kompetensi"]
[]
[]
[]
[]
[null,"Peringkat 2",null,"Perusahaan Efek memiliki keunggulan kompetitif  dan ancaman kompetitor tergolong minor.",null,"Peringkat 2",null,"Secara Umum Sumber daya memadai baik dari sisi kuantitas maupun kompetensi pada fungsi manajemen risiko stratejik."]
[]
[]
[]
[]
[null,"Peringkat 3",null,"Perusahaan Efek Anggota Bursa memiliki keunggulan kompetitif yang\nModerat dan terdapat ancaman dari kompetitor.",null,"Peringkat 3",null,"Secara Umum Sumber daya cukup memadai baik dari sisi kuantitas maupun kompetensi pada fungsi manajemen risiko stratejik."]
[]
[]
[]
[]
[null,"Peringkat 4",null,"Perusahaan Efek Anggota Bursa kurang memiliki keunggulan kompetitif, atau terdapat ancaman signifikan dari kompetitor.",null,"Peringkat 4",null,"Secara Umum Sumber daya kurang memadai baik dari sisi kuantitas maupun kompetensi pada fungsi manajemen risiko stratejik."]
[]
[]
[]
[]
[null,"Peringkat 5",null,"Perusahaan Efek Anggota Bursa tidak memiliki keunggulan kompetitif, dan terdapat ancaman sangat signifikan dari kompetitor.",null,"Peringkat 5",null,"Secara Umum Sumber daya tidak memadai baik dari sisi kuantitas maupun kompetensi pada fungsi manajemen risiko stratejik."]
[]
[]
[]
[]
["Kesimpulan:"]
["Strategic Positioning Perusahaan Efek di Industri Perusahaan Efek","Peringkat 1",null,"Produk/kegiatan usaha Perusahaan Efek Anggota Bursa Tergolong stabil, tidak kompleks, dan terdiversifikasi.",null,"Peringkat 1",null,"Secara umum sumber daya sangat memadai dari segi kuantitas maupun kompetensi"]
[]
[]
[]
[]
[null,"Peringkat 2",null,"Produk/ kegiatan usaha Perusahaan Efek Anggota Bursa tergolong tidak kompleks dan terdiversifikasi.",null,"Peringkat 2",null,"Secara umum sumber daya memadai dari segi kuantitas maupun kompetensi"]
[]
[]
[]
[]
[null,"Peringkat 3",null,"Produk/ kegiatan usaha Perusahaan Efek Anggota Bursa secara umum terdiversifikasi, namun terdapat yang tergolong kompleks.",null,"Peringkat 3",null,"Secara umum sumber daya cukup memadai dari segi kuantitas maupun kompetensi"]
[]
[]
[]
[]
[null,"Peringkat 4",null,"Beberapa produk/kegiatan usaha Perusahaan Efek Anggota Bursa terkonsentrasi dan tergolong kompleks.",null,"Peringkat 4",null,"Secara umum sumber daya kurang memadai dari segi kuantitas maupun kompetensi"]
[]
[]
[]
[]
[null,"Peringkat 5",null,"Produk/kegiatan usaha sangat terkonsentrasi dan tergolong kompleks.",null,"Peringkat 5",null,"Secara Umum Sumber daya tidak memadai dari segi kuantitas maupun kompetensi "]
[]
[]
[]
[]
[]
["Kesimpulan:"]
["Strategi berisiko rendah dan Strategi berisiko tinggi","Peringkat 1",null,"Strategi Perusahaan Efek Anggota Bursa tergolong konservatif  atau berisiko rendah.",null,"Peringkat 1","a.","Perumusan peringkat risiko yang akan diambil (risk appetite) dan toleransi risiko (risk tolerance) sangat memadai dan telah sejalan dengan sasaran strategis dan strategi bisnis Perusahaan Efek Anggota Bursa secara keseluruhan."]
[null,null,null,null,null,null,"b.","Proses manajemen risiko stratejik sangat memadai dalam mengidentifikasi, mengukur, memantau,dan mengendalikan risiko stratejik."]
[null,null,null,null,null,null,"c.","Direksi dan Dewan Komisaris memiliki awareness dan pemahaman yang sangat baik mengenai manajemen risiko stratejik, sumber risiko stratejik dan risiko stratejik."]
[null,null,null,null,null,null,"d.","Budaya manajemen risiko stratejik sangat kuat dan telah diinternalisasikan dengan sangat baik pada seluruh level organisasi."]
[]
[null,"Peringkat 2",null,"Strategi Perusahaan Efek Anggota Bursa Berisiko rendah namun dengan tren meningkat.",null,"Peringkat 2","a.","Perumusan peringkat risiko yang akan diambil (risk appetite) dan toleransi risiko (risk tolerance) memadai dan telah sejalan dengan sasaran strategis dan strategi bisnis Perusahaan Efek Anggota Bursa secara keseluruhan."]
[null,null,null,null,null,null,"b.","Proses manajemen risiko stratejik memadai dalam mengidentifikasi, mengukur, memantau, dan mengendalikan risiko stratejik."]
[null,null,null,null,null,null,"c.","Direksi dan Dewan Komisaris memiliki awareness dan pemahaman yang baik mengenai manajemen risiko stratejik."]
[null,null,null,null,null,null,"d.","Budaya manajemen risiko stratejik kuat dan telah diinternalisasikan dengan baik pada seluruh level organisasi."]
[null,"Peringkat 3",null,"Strategi Perusahaan Efek Anggota Bursa tergolong berisiko moderate.",null,"Peringkat 3","a.","Perumusan peringkat risiko yang akan diambil (risk appetite) dan toleransi risiko (risk tolerance) cukup memadai tetapi tidak selalu sejalan dengan    sasaran strategi dan strategi bisnis Perusahaan Efek secara keseluruhan."]
[null,null,null,null,null,null,"b.","Proses manajemen risiko stratejik cukup memadai dalam mengidentifikasi, mengukur, memantau,dan mengendalikan risiko stratejik."]
[null,null,null,null,null,null,"c.","Direksi dan Dewan Komisaris memiliki awareness dan pemahaman yang cukup baik mengenai manajemen risiko stratejik."]
[null,null,null,null,null,null,"d.","Budaya manajemen risiko stratejik cukup kuat dan telah diinternalisasikan dengan cukup baik tetapi belum selalu dilaksanakan secara konsisten."]
[null,"Peringkat 4",null,"Strategi Perusahaan Efek Anggota Bursa tergolong berisiko moderate namun dengan tren meningkat.",null,"Peringkat 4","a.","Perumusan peringkat risiko yang akan diambil (risk appetite) dan toleransi risiko (risk tolerance) kurang memadai dan tidak sejalan dengan sasaran strategis dan strategi bisnis Perusahaan Efek secara keseluruhan."]
[null,null,null,null,null,null,"b.","Proses manajemen risiko stratejik Kurang memadai dalam mengidentifikasi, mengukur, memantau,dan mengendalikan risiko stratejik."]
[null,null,null,null,null,null,"c.","Pelaksanaan tugas Direksi dan Dewan Komisaris secara Umum kurang memadai. Terdapat kelemahan pada berbagai aspek penilaian yang membutuhkan perbaikan segera."]
[null,null,null,null,null,null,"d.","Budaya manajemen risiko stratejik kurang kuat dan belum diinternalisasikan dengan baik pada setiap level satuan kerja."]
[null,"Peringkat 5",null,"Strategi Perusahaan Efek Anggota Bursa tergolong berisiko tinggi.",null,"Peringkat 5","a.","Perumusan peringkat risiko yang akan diambil(risk appetite) dan toleransi risiko (risk tolerance) tidak memadai dan tidak terdapat kaitan dengan dengan sasaran strategis dan strategi bisnis Perusahaan Efek secara keseluruhan."]
[null,null,null,null,null,null,"b.","Proses manajemen risiko stratejik tidak memadai dalam mengidentifikasi, mengukur, memantau, dan mengendalikan risiko stratejik."]
[null,null,null,null,null,null,"c.","Pelaksanaan tugas Direksi dan Dewan Komisaris tidak memadai. Terdapat kelemahan yang signifikan pada hampir seluruh aspek penilaian dan tindakan dan penyelesaiannya di luar kemampuan Perusahaan Efek."]
[null,null,null,null,null,null,"d.","Budaya manajemen risiko stratejik tidak kuat atau belum ada sama sekali"]
[]
["Kesimpulan:"]
["Pencapaian Realisasi Bisnis Perusahaan Efek","Peringkat 1",null,"Pencapaian Realisasi Bisnis Perusahaan Efek sangat baik",null,"Peringkat 1","a.","Secara umum sumber daya manusia sangat memadai dari segi kuantitas maupun kompetensi"]
[null,null,null,null,null,null,"b.","Direksi dan Dewan Komisaris memiliki awareness dan pemahaman yang sangat baik mengenai manajemen risiko stratejik, sumber risiko stratejik dan risiko stratejik."]
[null,null,null,null,null,null,"c.","Budaya manajemen risiko stratejik sangat kuat dan telah diinternalisasikan dengan sangat baik pada seluruh level organisasi."]
[null,null,null,null,null,null,"d.","Pelaksanaan tugas Direksi dan Dewan Komisaris secara keseluruhan sangat memadai."]
[null,null,null,null,null,null,"e.","Kebijakan dan prosedur manajemen risiko stratejik sangat memadai dan tersedia untuk seluruh area manajemen risiko stratejik, sejalan dengan penerapan,dan dipahami dengan baik oleh pegawai."]
[null,"Peringkat 2",null,"Pencapaian rencana bisnis Perusahaan Efek Anggota Bursa baik.",null,"Peringkat 2","a.","Sumber daya manusia memadai baik dari sisi kuantitas maupun kompetensi"]
[null,null,null,null,null,null,"b.","Direksi dan Dewan Komisaris memiliki awareness dan pemahaman yang baik mengenai manajemen risiko stratejik."]
[null,null,null,null,null,null,"c.","Budaya manajemen risiko stratejik kuat dan telah diinternalisasikan dengan baik pada seluruh level organisasi."]
[null,null,null,null,null,null,"d.","Pelaksanaan tugas Direksi dan Dewan Komisaris secara umum memadai. Terdapat beberapa kelemahan tetapi tidak signifikan dan dapat diperbaiki dengan segera."]
[null,null,null,null,null,null,"e.","Kebijakan dan prosedur manajemen risiko stratejik memadai dan tersedia Untuk seluruh area manajemen risiko stratejik, sejalan dengan penerapan, dan dipahami dengan baik oleh pegawai meskipun terdapat kelemahan minor."]
[null,"Peringkat 3",null,"Pencapaian rencana bisnis Perusahaan Efek Anggota Bursa cukup baik",null,"Peringkat 3","a.","Secara umum Sumber daya manusia cukup memadai baik dari sisi kuantitas maupun kompetensi"]
[null,null,null,null,null,null,"b.","Pelaksanaan tugas Direksi dan Dewan Komisaris secara umum cukup memadai. Terdapat kelemahan pada beberapa aspek penilaian yang perlu mendapat perhatian manajemen."]
[null,null,null,null,null,null,"c.","Budaya manajemen risiko stratejik cukup kuat dan telah diinternalisasikan dengan cukup baik tetapi belum selalu dilaksanakan secara konsisten."]
[null,null,null,null,null,null,"d.","Pelaksanaan tugas Direksi dan Dewan Komisaris secara umum cukup memadai. Terdapat kelemahan pada beberapa aspek penilaian yang perlu mendapat perhatian manajemen."]
[null,null,null,null,null,null,"e.","Kebijakan dan prosedur manajemen risiko stratejik cukup memadai namun tidak dipahami dengan baik oleh pegawai, sehingga berdampak antara lain pada penerapannya yang tidak konsisten."]
[null,"Peringkat 4",null,"Pencapaian rencana bisnis Perusahaan Efek Anggota Bursa kurang baik",null,"Peringkat 4","a.","Sumber daya manusia kurang memadai dari segi kuantitas maupun kompetensi "]
[null,null,null,null,null,null,"b.","Pelaksanaan tugas Direksi dan Dewan Komisaris secara Umum kurang memadai. Terdapat kelemahan pada berbagai aspek penilaian yang membutuhkan perbaikan segera."]
[null,null,null,null,null,null,"c.","Budaya manajemen risiko stratejik kurang kuat dan belum diinternalisasikan dengan baik pada setiap level satuan kerja."]
[null,null,null,null,null,null,"d.","Pelaksanaan tugas Direksi dan Dewan Komisaris secara Umum kurang memadai. Terdapat kelemahan pada berbagai aspek penilaian yang membutuhkan perbaikan segera."]
[null,null,null,null,null,null,"e.","Kelemahan signifikan pada kebijakan, prosedur, dan limit risiko stratejik."]
[null,"Peringkat 5",null,"Pencapaian rencana bisnis Perusahaan Efek Anggota Bursa tidak baik.",null,"Peringkat 5","a.","Sumber daya Manusia tidak memadai dari segi kuantitas maupun kompetensi pada fungsi manjemen risiko stratejik."]
[null,null,null,null,null,null,"b.","Pelaksanaan tugas Direksi dan Dewan Komisaris tidak memadai. Terdapat kelemahan yang signifikan pada hampir seluruh aspek penilaian dan tindakan dan penyelesaiannya di luar kemampuan Perusahaan Efek."]
[null,null,null,null,null,null,"c.","Budaya manajemen risiko stratejik tidak kuat atau belum ada sama sekali"]
[null,null,null,null,null,null,"d.","Pelaksanaan tugas Direksi dan Dewan Komisaris tidak memadai. Terdapat kelemahan yang signifikan pada hampir seluruh aspek penilaian dan tindakan dan penyelesaiannya di luar kemampuan Perusahaan Efek."]
[null,null,null,null,null,null,"e.","Kelemahan signifikan pada fungsi manajemen risiko stratejik yang membutuhkan perbaikan fundamental."]
["Kesimpulan:"]

{"sheet":"Rekap Nilai","index":8,"n_rows":6,"n_cols":99,"rows_kept":6,"cut":false,"hidden":false,"merged":[[2,0,2,10],[2,32,2,33],[2,41,2,44],[2,88,2,91],[3,0,3,2],[3,3,3,5],[3,6,3,10],[2,68,2,74],[2,60,2,65],[2,47,2,57],[2,36,2,38],[2,21,2,27],[2,13,2,18]]}
[1,2,3,4,5,6,7,8,9,10,11,12,13,14,15,16,17,18,19,20,21,22,23,24,25,26,27,28,29,30,31,32,33,34,35,36,37,38,39,40,41,null,null,null,null,null,null,42,43,44,45,46,47,48,49,50,51,52,53,54,55,56,57,58,59,60,61,62,63,64,65,66,67,68,69,70,71,72,73,74,75,76,77,78,79,80,81,82,null,null,null,null,null,null,83,84,85,86,87]
["Peringkat Komponen Risiko Inheren",null,null,null,null,null,null,null,null,null,null,null,null,null,null,null,null,null,null,null,null,null,null,null,null,null,null,null,null,null,null,null,null,null,null,null,null,null,null,null,null,null,null,null,null,null,null,"Peringkat Komponen Manajemen Risiko"]
["Parameter Risiko Operasional",null,null,null,null,null,null,null,null,null,null,"Rata-rata Risiko Operasional","Rata-rata Risiko Operasional (Pembulatan)","Parameter Risiko Kredit",null,null,null,null,null,"Rata-rata Risiko kredit","Rata-rata Risiko kredit (Pembulatan)","Parameter Risiko Likuiditas",null,null,null,null,null,null,"Rata-rata Risiko Likuiditas","Rata-rata Risiko Likuiditas (Pembulatan)","Risiko Pasar","Risiko Kepatuhan","Risiko Reputasi (Market Conduct)",null,"Rata-rata Risiko Reputasi","Rata-rata Risiko Reputasi (Pembulatan)","Parameter Risiko Hukum",null,null,"Rata-rata Risiko Hukum","Rata-rata Risiko Hukum (Pembulatan)","Parameter Risiko Stratejik",null,null,null,"Rata-rata Risiko Stratejik","Rata-rata Risiko Pembulatan","Parameter MR Operasional",null,null,null,null,null,null,null,null,null,null,"Rata-rata MR Operasional","Rata-rata MR Operasional (Pembulatan)","Parameter Risiko Kredit",null,null,null,null,null,"Rata-rata MR kredit","Rata-rata MR kredit (Pembulatan)","Parameter Risiko Likuiditas",null,null,null,null,null,null,"Rata-rata MR Likuiditas","Rata-rata MR Likuiditas (Pembulatan)","Parameter MR Pasar","Parameter MR Kepatuhan","Parameter MR Reputasi",null,"Rata-rata MR Reputasi","Rata-rata MR Reputasi (Pembulatan)","Risiko Hukum",null,null,"Rata-rata MR Hukum","Rata-rata MR Hukum (Pembulatan)","Parameter MR Stratejik",null,null,null,"Rata-rata MR Stratejik","Rata-rata MR Stratejik (pembulatan)","Nilai Risiko Inheran PE","Nilai Risiko Inheren PE (Pembulatan)","Nilai MR PE","Nilai RM PE (Pembulatan)","Nilai Profil Risiko PE"]
["I",null,null,"II",null,null,"III",null,null,null,null,null,null,1,2,3,4,5,6,null,null,1,2,3,4,5,6,7,null,null,1,1,1,2,null,null,1,2,3,null,null,null,null,null,null,null,null,"I",null,null,"II",null,null,"III",null,null,null,null,null,null,1,2,3,4,5,6,null,null,1,2,3,4,5,6,7,null,null,1,1,"I","II",null,null,1,2,3]
[1,2,3,1,2,3,1,2,3,4,5,null,null,null,null,null,null,null,null,null,null,null,null,null,null,null,null,null,null,null,null,null,null,null,null,null,null,null,null,null,null,null,null,null,null,null,null,1,2,3,1,2,3,1,2,3,4,5,null,null,null,null,null,null,null,null,null,null,null,null,null,null,null,null,null,null,null,null,null,1,1]
[null,null,null,null,null,null,null,null,null,null,null,{"$f":"AVERAGE(A6:K6)","v":{"$error":"#DIV/0!"}},{"$f":"ROUND(L6,0.6=2)","v":{"$error":"#DIV/0!"}},null,null,null,null,null,null,{"$f":"AVERAGE(N6:S6)","v":{"$error":"#DIV/0!"}},{"$f":"ROUND(T6,0.6=2)","v":{"$error":"#DIV/0!"}},null,null,null,null,null,null,null,{"$f":"AVERAGE(V6:AB6)","v":{"$error":"#DIV/0!"}},{"$f":"ROUND(AC6,0.6=2)","v":{"$error":"#DIV/0!"}},null,null,null,null,{"$f":"AVERAGE(AG6:AH6)","v":{"$error":"#DIV/0!"}},{"$f":"ROUND(AI6,0.6=2)","v":{"$error":"#DIV/0!"}},null,null,null,{"$f":"AVERAGE(AK6:AM6)","v":{"$error":"#DIV/0!"}},{"$f":"ROUND(AN6,0.6=2)","v":{"$error":"#DIV/0!"}},null,null,null,null,{"$f":"AVERAGE(AP6:AS6)","v":{"$error":"#DIV/0!"}},{"$f":"ROUND(AT6,0.6=2)","v":{"$error":"#DIV/0!"}},null,null,null,null,null,null,null,null,null,null,null,{"$f":"AVERAGE(AY6:BF6)","v":{"$error":"#DIV/0!"}},{"$f":"ROUND(BG6,0.6=3)","v":{"$error":"#DIV/0!"}},null,null,null,null,null,null,{"$f":"AVERAGE(BI6:BN6)","v":{"$error":"#DIV/0!"}},{"$f":"ROUND(BO6,0.6=2)","v":{"$error":"#DIV/0!"}},null,null,null,null,null,null,null,{"$f":"AVERAGE(BQ6:BW6)","v":{"$error":"#DIV/0!"}},{"$f":"ROUND(BX6,0.6=2)","v":{"$error":"#DIV/0!"}},null,null,null,null,{"$f":"AVERAGE(CB6:CC6)","v":{"$error":"#DIV/0!"}},{"$f":"ROUND(CD6,0.6=2)","v":{"$error":"#DIV/0!"}},null,null,null,{"$f":"AVERAGE(CF6:CH6)","v":{"$error":"#DIV/0!"}},{"$f":"ROUND(CI6,0.6=2)","v":{"$error":"#DIV/0!"}},null,null,null,null,{"$f":"AVERAGE(CK6:CN6)","v":{"$error":"#DIV/0!"}},{"$f":"ROUND(CO6,0.6=2)","v":{"$error":"#DIV/0!"}},{"$f":"AVERAGE(L6,T6,AC6,AE6,AF6,AI6,AN6,AT6)","v":{"$error":"#DIV/0!"}},{"$f":"ROUND(CQ6,0.6=2)","v":{"$error":"#DIV/0!"}},{"$f":"AVERAGE(BG6,BO6,BX6,BZ6,CA6,CD6,CI6,CO6)","v":{"$error":"#DIV/0!"}},{"$f":"ROUND(CS6,0.6=3)","v":{"$error":"#DIV/0!"}},{"$f":"IF(CQ6*CS6<3,\"1,00\",IF(CQ6*CS6<5,\"2,00\",IF(CQ6*CS6<10,\"3,00\",IF(CQ6*CS6<16.01,\"4,00\",IF(CQ6*CS6<25.01,\"5,00\")))))","v":{"$error":"#DIV/0!"}}]

{"sheet":"12. Summary","index":9,"n_rows":51,"n_cols":7,"rows_kept":51,"cut":false,"hidden":false,"merged":[]}
[]
[null,"Kode",{"$f":"#REF!","v":{"$error":"#REF!"}}]
[null,"Perusahaan Efek",{"$f":"#REF!","v":{"$error":"#REF!"}}]
[null,"Periode",{"$f":"#REF!","v":{"$error":"#REF!"}}]
[null,"Tingkat Kesehatan PE",{"$f":"#REF!","v":{"$error":"#REF!"}}]
[]
[null,"Keterangan","Parameter","Risiko Inheren","MR","Profil Risiko","Peringkat Profil Risiko"]
[null,"1. Profil Risiko",null,{"$f":"'Rekap Nilai'!CQ6","v":{"$error":"#DIV/0!"}},{"$f":"'Rekap Nilai'!CS6","v":{"$error":"#DIV/0!"}},{"$f":"+D8*E8","v":{"$error":"#DIV/0!"}},{"$f":"IF(F8<3.1,\"1\",IF(F8<5.1,\"2\",IF(F8<10.1,\"3\",IF(F8<16.01,\"4\",IF(F8<25.1,\"5\")))))","v":{"$error":"#DIV/0!"}}]
[null," a. Risiko Operasional",null,{"$f":"'Rekap Nilai'!L6","v":{"$error":"#DIV/0!"}},{"$f":"'Rekap Nilai'!BG6","v":{"$error":"#DIV/0!"}},{"$f":"+D9*E9","v":{"$error":"#DIV/0!"}},{"$f":"IF(F9<3.1,\"1\",IF(F9<5.1,\"2\",IF(F9<10.1,\"3\",IF(F9<16.01,\"4\",IF(F9<25.1,\"5\")))))","v":{"$error":"#DIV/0!"}}]
[null," I. Kompleksitas Bisnis","1. Kompleksitas Produk dan Transaksi",{"$f":"'Rekap Nilai'!A6","v":0}]
[null,null,"2. Kompleksitas Layanan Jasa Perdagangan",{"$f":"'Rekap Nilai'!B6","v":0}]
[null,null,"3. Kompleksitas Nasabah",{"$f":"'Rekap Nilai'!C6","v":0}]
[null," II. Sumber Daya Manusia","1. Beban kerja pegawai",{"$f":"'Rekap Nilai'!D6","v":0},{"$f":"'Rekap Nilai'!AY6","v":0}]
[null,null,"2. Human Error",{"$f":"'Rekap Nilai'!E6","v":0},{"$f":"'Rekap Nilai'!AZ6","v":0}]
[null,null,"3. Fraud",{"$f":"'Rekap Nilai'!F6","v":0},{"$f":"'Rekap Nilai'!BA6","v":0}]
[null," III. Teknologi Informasi","1. Kegagalan sistem",{"$f":"'Rekap Nilai'!G6","v":0},{"$f":"'Rekap Nilai'!BB6","v":0}]
[null,null,"2. Sistem tidak mampu mendukung kompleksitas bisnis",{"$f":"'Rekap Nilai'!H6","v":0},{"$f":"'Rekap Nilai'!BC6","v":0}]
[null,null,"3. Sistem masih dapat diintervensi manual",{"$f":"'Rekap Nilai'!I6","v":0},{"$f":"'Rekap Nilai'!BD6","v":0}]
[null,null,"4. Tidak tersedianya jaringan yang stabil",{"$f":"'Rekap Nilai'!J6","v":0},{"$f":"'Rekap Nilai'!BE6","v":0}]
[null,null,"5. Kemungkinan sistem diakses oleh pihak yang tidak terotorisasi",{"$f":"'Rekap Nilai'!K6","v":0},{"$f":"'Rekap Nilai'!BF6","v":0}]
[null," b. Risiko Kredit",null,{"$f":"'Rekap Nilai'!T6","v":{"$error":"#DIV/0!"}},{"$f":"'Rekap Nilai'!BO6","v":{"$error":"#DIV/0!"}},{"$f":"+D21*E21","v":{"$error":"#DIV/0!"}},{"$f":"IF(F21<3.1,\"1\",IF(F21<5.1,\"2\",IF(F21<10.1,\"3\",IF(F21<16.01,\"4\",IF(F21<25.1,\"5\")))))","v":{"$error":"#DIV/0!"}}]
[null,null,"1. Gagal Serah Nasabah Kelembagaan (NK)",{"$f":"'Rekap Nilai'!N6","v":0},{"$f":"'Rekap Nilai'!BI6","v":0}]
[null,null,"2. Gagal Serah Perusahaan Efek (PE)",{"$f":"'Rekap Nilai'!O6","v":0},{"$f":"'Rekap Nilai'!BJ6","v":0}]
[null,null,"3. Potensi Tidak tertagihnya transaksi efek  yang tidak dijamin oleh LKP",{"$f":"'Rekap Nilai'!P6","v":0},{"$f":"'Rekap Nilai'!BK6","v":0}]
[null,null,"4. Pemberian pembiayaan marjin yang agresif",{"$f":"'Rekap Nilai'!Q6","v":0},{"$f":"'Rekap Nilai'!BL6","v":0}]
[null,null,"5. Kualitas Transaksi Reverse Repo Tidak Memadai",{"$f":"'Rekap Nilai'!R6","v":0},{"$f":"'Rekap Nilai'!BM6","v":0}]
[null,null,"6. Pemberian Pembiayaan non-marjin yang tidak sesuai dengan ketentuan",{"$f":"'Rekap Nilai'!S6","v":0},{"$f":"'Rekap Nilai'!BN6","v":0}]
[null," c. Risiko Likuiditas",null,{"$f":"'Rekap Nilai'!AC6","v":{"$error":"#DIV/0!"}},{"$f":"'Rekap Nilai'!BX6","v":{"$error":"#DIV/0!"}},{"$f":"+D28*E28","v":{"$error":"#DIV/0!"}},{"$f":"IF(F28<3.1,\"1\",IF(F28<5.1,\"2\",IF(F28<10.1,\"3\",IF(F28<16.01,\"4\",IF(F28<25.1,\"5\")))))","v":{"$error":"#DIV/0!"}}]
[null,null,"1. Aset lancar tidak dapat melunasi hutang",{"$f":"'Rekap Nilai'!V6","v":0},{"$f":"'Rekap Nilai'!BQ6","v":0}]
[null,null,"2. Tidak dapat melunasi tagihan KPEI atas transaksi nasabah reguler",{"$f":"'Rekap Nilai'!W6","v":0},{"$f":"'Rekap Nilai'!BR6","v":0}]
[null,null,"3. Transaksi Hutang Repo",{"$f":"'Rekap Nilai'!X6","v":0},{"$f":"'Rekap Nilai'!BS6","v":0}]
[null,null,"4. Perusahaan tidak dapat melunasi Pinjaman dana nasabah",{"$f":"'Rekap Nilai'!Y6","v":0},{"$f":"'Rekap Nilai'!BT6","v":0}]
[null,null,"5. Perusahaan tidak memiliki kemampuan likuiditas ketika melakukan kegiatan penjaminan",{"$f":"'Rekap Nilai'!Z6","v":0},{"$f":"'Rekap Nilai'!BU6","v":0}]
[null,null,"6. Perusahaan tidak dapat melakukan settlement transaksi nasabah kelembagaan atas gagal terima",{"$f":"'Rekap Nilai'!AA6","v":0},{"$f":"'Rekap Nilai'!BV6","v":0}]
[null,null,"7. Perusahaan tidak dapat melakukan settle transaksi atas gagal terima Perusahaan Efek Lainnya",{"$f":"'Rekap Nilai'!AB6","v":0},{"$f":"'Rekap Nilai'!BW6","v":0}]
[null," d. Risiko Pasar",null,{"$f":"+D37","v":0},{"$f":"+E37","v":0},{"$f":"+D36*E36","v":0},{"$f":"IF(F36<3.1,\"1\",IF(F36<5.1,\"2\",IF(F36<10.1,\"3\",IF(F36<16.01,\"4\",IF(F36<25.1,\"5\")))))","v":"1"}]
[null,null,"1. Perusahaan mengalami kerugian atas kepemilikan Portofolio",{"$f":"'Rekap Nilai'!AE6","v":0},{"$f":"'Rekap Nilai'!BZ6","v":0}]
[null," e. Risiko Kepatuhan",null,{"$f":"+D39","v":0},{"$f":"+E39","v":0},{"$f":"+D38*E38","v":0},{"$f":"IF(F38<3.1,\"1\",IF(F38<5.1,\"2\",IF(F38<10.1,\"3\",IF(F38<16.01,\"4\",IF(F38<25.1,\"5\")))))","v":"1"}]
[null,null,"1. Jumlah Sanksi yang diberikan",{"$f":"'Rekap Nilai'!AF6","v":0},{"$f":"'Rekap Nilai'!CA6","v":0}]
[null," f. Risiko Reputasi ",null,{"$f":"'Rekap Nilai'!AI6","v":{"$error":"#DIV/0!"}},{"$f":"'Rekap Nilai'!CD6","v":{"$error":"#DIV/0!"}},{"$f":"+D40*E40","v":{"$error":"#DIV/0!"}},{"$f":"IF(F40<3.1,\"1\",IF(F40<5.1,\"2\",IF(F40<10.1,\"3\",IF(F40<16.01,\"4\",IF(F40<25.1,\"5\")))))","v":{"$error":"#DIV/0!"}}]
[null,null,"1. Frekuensi dan Jenis Pengaduan",{"$f":"'Rekap Nilai'!AG6","v":0},{"$f":"'Rekap Nilai'!CB6","v":0}]
[null,null,"2. Frekuensi, jenis, dampak Pemberitaan negatif dan media yang digunakan.",{"$f":"'Rekap Nilai'!AH6","v":0},{"$f":"'Rekap Nilai'!CC6","v":0}]
[null," g. Risiko Hukum",null,{"$f":"'Rekap Nilai'!AN6","v":{"$error":"#DIV/0!"}},{"$f":"'Rekap Nilai'!CI6","v":{"$error":"#DIV/0!"}},{"$f":"+D43*E43","v":{"$error":"#DIV/0!"}},{"$f":"IF(F43<3.1,\"1\",IF(F43<5.1,\"2\",IF(F43<10.1,\"3\",IF(F43<16.01,\"4\",IF(F43<25.1,\"5\")))))","v":{"$error":"#DIV/0!"}}]
[null,null,"1. Perusahaan menerima gugatan / litigasi",{"$f":"'Rekap Nilai'!AK6","v":0},{"$f":"'Rekap Nilai'!CF6","v":0}]
[null,null,"2. Perusahaan memiliki Perjanjian dengan Kelemahan Perikatan",{"$f":"'Rekap Nilai'!AL6","v":0},{"$f":"'Rekap Nilai'!CG6","v":0}]
[null,null,"3. Ketiadaan Peraturan Perundang-undangan",{"$f":"'Rekap Nilai'!AM6","v":0},{"$f":"'Rekap Nilai'!CH6","v":0}]
[null,"h. Risiko Strategis",null,{"$f":"'Rekap Nilai'!AT6","v":{"$error":"#DIV/0!"}},{"$f":"'Rekap Nilai'!CO6","v":{"$error":"#DIV/0!"}},{"$f":"+D47*E47","v":{"$error":"#DIV/0!"}},{"$f":"IF(F47<3.1,\"1\",IF(F47<5.1,\"2\",IF(F47<10.1,\"3\",IF(F47<16.01,\"4\",IF(F47<25.1,\"5\")))))","v":{"$error":"#DIV/0!"}}]
[null,null,"1. Kesesuaian Strategi dengan Kondisi Lingkungan Bisnis",{"$f":"'Rekap Nilai'!AP6","v":0},{"$f":"'Rekap Nilai'!CK6","v":0}]
[null,null,"2. Strategic Positioning Perusahaan Efek di Industri Perusahaan Efek",{"$f":"'Rekap Nilai'!AQ6","v":0},{"$f":"'Rekap Nilai'!CL6","v":0}]
[null,null,"3. Strategi berisiko rendah dan Strategi berisiko tinggi",{"$f":"'Rekap Nilai'!AR6","v":0},{"$f":"'Rekap Nilai'!CM6","v":0}]
[null,null,"4. Pencapaian Realisasi Bisnis Perusahaan Efek",{"$f":"'Rekap Nilai'!AS6","v":0},{"$f":"'Rekap Nilai'!CN6","v":0}]